{"text_format":"2","workbook":"xlsx","n_sheets":6,"sheets":["Обществознание 6","Обществознание 7","Обществознание 8","Обществознание 9","Обществознание 10","Обществознание 11"],"not_rendered":{"charts":0,"images":0,"macros":0,"external_links":0,"defined_names":6,"comments":0,"pivot_tables":0},"unopened":[],"bounds":{"document_bytes":16777216,"sheet_cells":100000,"run_cost":"one","rows_first":2000,"rows_last":500,"rows_between":2000,"halvings":0,"cell_chars":16384,"cell_head_chars":4096},"cells_cut":0,"cells_raw":0,"read":"whole","date_system":"1900"}

{"sheet":"Обществознание 6","index":0,"n_rows":108,"n_cols":11,"rows_kept":108,"cut":false,"hidden":false,"merged":[[0,2,0,9]]}
[]
[]
[null,null,100]
["№ п/п","Муниципалитет","Шифр (код) выданный ребенку","класс обучается","класс выступает","ОО, в которой обучается (полное название по УСТАВУ)","Количество набранных баллов","Статус","Победитель/призер МЭ 2020-2021 (статус)*","ФИО учителя (наставника)","ФИО учителя (наставника)**"]
[1,"Московский","О-06-09",6,6,"Муниципальное автономное общеобразовательное учреждение \"Гимназия № 67\"",94,"победитель",null,"Раков Антон Сергеевич"]
[2,"Московский","и-6-10",6,6,"Муниципальное автономное  общеобразовательное учреждение \"Школа №74 с углубленным изучением отдельных предметов\"",82,"победитель",null,"Шибалова Юлия Александровна"]
[3,"Московский","О-6-6",6,6,"муниципальное автономное  общеобразовательное учреждение \"Школа № 70 с углубленным изучением отдельных предметов\"",73,"призер",null,"Сутягин Николай Александрович"]
[4,"Московский","общ-11- 6-3",6,6,"Муниципальное бюджетное общеобразовательное учреждение  \"Лицей № 87 имени Л.И. Новиковой\" ",69,"призер",null,"Кочетова Софья Ивановна"]
[5,"Московский","О-6-9",6,6,"муниципальное автономное  общеобразовательное учреждение \"Школа № 70 с углубленным изучением отдельных предметов\"",69,"призер",null,"Сутягин Николай Александрович"]
[6,"Московский","О-6-17",6,6,"Муниципальное автономное общеобразовательное учреждение  \"Школа № 118 с углубленным изучением отдельных предметов\"",67,"призер",null,"Сосенкова Светлана Алексеевна"]
[7,"Московский","О-6-8",6,6,"Муниципальное автономное общеобразовательное учреждение  \"Школа № 118 с углубленным изучением отдельных предметов\"",64,"призер",null,"Новоселова Мария Александровна"]
[8,"Московский","О-6-5",6,6,"муниципальное автономное  общеобразовательное учреждение \"Школа № 70 с углубленным изучением отдельных предметов\"",63,"призер",null,"Сутягин Николай Александрович"]
[9,"Московский","О-6-40",6,6,"Муниципальное автономное  общеобразовательное учреждение \"Школа №178\"",63,"призер",null,"Чеснокова Ольга Андреевна"]
[10,"Московский","ОБ-6-20",6,6,"Муниципальное автономное  общеобразовательное учреждение \"Школа №172\"",62,"призер",null,"Карпова Ольга Валерьевна"]
[11,"Московский","и-6-4",6,6,"Муниципальное автономное  общеобразовательное учреждение \"Школа №74 с углубленным изучением отдельных предметов\"",60,"призер",null,"Шибалова Юлия Александровна"]
[12,"Московский","О-60839",null,null,"Муниципальное бюджетное общеобразовательное учреждение \"Школа № 69\"",60,"призер",null,"Миртова Ирина Владимировна"]
[13,"Московский","О-6-14",6,6,"Муниципальное автономное общеобразовательное учреждение  \"Школа № 118 с углубленным изучением отдельных предметов\"",59,"призер",null,"Новоселова Мария Александровна"]
[14,"Московский","О-60639",6,6,"Муниципальное бюджетное общеобразовательное учреждение \"Школа № 69\"",58,"призер",null,"Миртова Ирина Владимировна"]
[15,"Московский","О-6-9",6,6,"Муниципальное автономное общеобразовательное учреждение  \"Школа № 118 с углубленным изучением отдельных предметов\"",58,"призер",null,"Новоселова Мария Александровна"]
[16,"Московский","ОБ-06-50",6,6,"Муниципальное  бюджетное  общеобразовательное учреждение \"Школа № 21\"",56,"призер",null,"Мельникова Екатерина Андреевна"]
[17,"Московский","О 6-8",6,6,"Муниципальное автономное  общеобразовательное учреждение \"Школа № 149\"\n",55,"призер",null,"Селегененко Любовь Валерьевна"]
[18,"Московский","О 6-7",6,6,"Муниципальное автономное  общеобразовательное учреждение \"Школа № 149\"\n",53,"призер",null,"Селегененко Любовь Валерьевна"]
[19,"Московский","О-6-15",6,6,"Муниципальное автономное общеобразовательное учреждение  \"Школа № 118 с углубленным изучением отдельных предметов\"",53,"призер",null,"Новоселова Мария Александровна"]
[20,"Московский","О-06-07",6,6,"Муниципальное автономное общеобразовательное учреждение \"Гимназия № 67\"",52,"призер",null,"Раков Антон Сергеевич"]
[21,"Московский","О-60439",6,6,"Муниципальное бюджетное общеобразовательное учреждение \"Школа № 69\"",52,"призер",null,"Миртова Ирина Владимировна"]
[22,"Московский","и-6-8",6,6,"Муниципальное автономное  общеобразовательное учреждение \"Школа №74 с углубленным изучением отдельных предметов\"",52,"призер",null,"Шибалова Юлия Александровна"]
[23,"Московский","О6-4",6,6,"Муниципальное  бюджетное  общеобразовательное учреждение \"Школа № 146\"",51,"призер",null,"Писаревская Наталья Николаевна"]
[24,"Московский","О 6-1",6,6,"Муниципальное автономное  общеобразовательное учреждение \"Школа № 149\"\n",51,"призер",null,"Селегененко Любовь Валерьевна"]
[25,"Московский","О-6-43",6,6,"Муниципальное автономное  общеобразовательное учреждение \"Школа №178\"",51,"призер",null,"Чеснокова Ольга Андреевна"]
[26,"Московский","общ-11- 6-4",6,6,"Муниципальное бюджетное общеобразовательное учреждение  \"Лицей № 87 имени Л.И. Новиковой\" ",50,"призер",null,"Кочетова Софья Ивановна"]
[27,"Московский","О-6-42",6,6,"Муниципальное автономное  общеобразовательное учреждение \"Школа №178\"",50,"призер",null,"Чеснокова Ольга Андреевна"]
[28,"Московский","О-6-4",6,6,"муниципальное автономное  общеобразовательное учреждение \"Школа № 70 с углубленным изучением отдельных предметов\"",49,"участник",null,"Сутягин Николай Александрович"]
[29,"Московский","О-06-03",6,6,"Муниципальное автономное общеобразовательное учреждение \"Гимназия № 67\"",49,"участник",null,"Раков Антон Сергеевич"]
[30,"Московский","О-6-6",6,6,"Муниципальное автономное общеобразовательное учреждение  \"Школа № 118 с углубленным изучением отдельных предметов\"",49,"участник",null,"Новоселова Мария Александровна"]
[31,"Московский","и-6-11",6,6,"Муниципальное автономное  общеобразовательное учреждение \"Школа №74 с углубленным изучением отдельных предметов\"",48,"участник",null,"Шибалова Юлия Александровна"]
[32,"Московский","О-6-1",6,6,"муниципальное автономное  общеобразовательное учреждение \"Школа № 70 с углубленным изучением отдельных предметов\"",47,"участник",null,"Сутягин Николай Александрович"]
[33,"Московский","общ-11-6-2",6,6,"Муниципальное бюджетное общеобразовательное учреждение  \"Лицей № 87 имени Л.И. Новиковой\" ",47,"участник",null,"Кочетова Софья Ивановна"]
[34,"Московский","О-06-02",6,6,"Муниципальное автономное общеобразовательное учреждение \"Гимназия № 67\"",47,"участник",null,"Раков Антон Сергеевич"]
[35,"Московский","О-06-01",6,6,"Муниципальное автономное общеобразовательное учреждение \"Гимназия № 67\"",47,"участник",null,"Раков Антон Сергеевич"]
[36,"Московский","О-6-1",6,6,"Муниципальное автономное общеобразовательное учреждение  \"Школа № 118 с углубленным изучением отдельных предметов\"",46,"участник",null,"Новоселова Мария Александровна"]
[37,"Московский","О-6-4",6,6,"Муниципальное автономное общеобразовательное учреждение  \"Школа № 118 с углубленным изучением отдельных предметов\"",46,"участник",null,"Сосенкова Светлана Алексеевна"]
[38,"Московский","О-6-10",6,6,"муниципальное автономное  общеобразовательное учреждение \"Школа № 70 с углубленным изучением отдельных предметов\"",45,"участник",null,"Сутягин Николай Александрович"]
[39,"Московский","ОБ-6-15",6,6,"Муниципальное автономное  общеобразовательное учреждение \"Школа №172\"",45,"участник",null,"Карпова Ольга Валерьевна"]
[40,"Московский","О6-1",6,6,"Муниципальное  бюджетное  общеобразовательное учреждение \"Школа № 146\"",44,"участник",null,"Писаревская Наталья Николаевна"]
[41,"Московский","О-6-7",6,6,"муниципальное автономное  общеобразовательное учреждение \"Школа № 70 с углубленным изучением отдельных предметов\"",44,"участник",null,"Сутягин Николай Александрович"]
[42,"Московский","ОБ6А-1",6,6,"Муниципальное  бюджетное  общеобразовательное учреждение \"Школа № 66\"",43,"участник",null,"Прошунина Галина Петровна"]
[43,"Московский","О-6-7",6,6,"Муниципальное автономное общеобразовательное учреждение  \"Школа № 118 с углубленным изучением отдельных предметов\"",43,"участник",null,"Новоселова Мария Александровна"]
[44,"Московский","и-6-5",6,6,"Муниципальное автономное  общеобразовательное учреждение \"Школа №74 с углубленным изучением отдельных предметов\"",42,"участник",null,"Шибалова Юлия Александровна"]
[45,"Московский","О-6-16",6,6,"Муниципальное автономное общеобразовательное учреждение  \"Школа № 118 с углубленным изучением отдельных предметов\"",42,"участник",null,"Новоселова Мария Александровна"]
[46,"Московский","О6-3",6,6,"Муниципальное  бюджетное  общеобразовательное учреждение \"Школа № 146\"",41,"участник",null,"Писаревская Наталья Николаевна"]
[47,"Московский","ОБ-6-14",6,6,"Муниципальное автономное  общеобразовательное учреждение \"Школа №172\"",41,"участник",null,"Карпова Ольга Валерьевна"]
[48,"Московский","ОБ-6-18",6,6,"Муниципальное автономное  общеобразовательное учреждение \"Школа №172\"",41,"участник",null,"Карпова Ольга Валерьевна"]
[49,"Московский","О-6-3",6,6,"Муниципальное автономное общеобразовательное учреждение  \"Школа № 118 с углубленным изучением отдельных предметов\"",41,"участник",null,"Новоселова Мария Александровна"]
[50,"Московский","О-6-11",6,6,"Муниципальное автономное общеобразовательное учреждение  \"Школа № 118 с углубленным изучением отдельных предметов\"",41,"участник",null,"Новоселова Мария Александровна"]
[51,"Московский","О-60139",6,6,"Муниципальное бюджетное общеобразовательное учреждение \"Школа № 69\"",41,"участник",null,"Миртова Ирина Владимировна"]
[52,"Московский","и-6-1",6,6,"Муниципальное автономное  общеобразовательное учреждение \"Школа №74 с углубленным изучением отдельных предметов\"",40,"участник",null,"Шибалова Юлия Александровна"]
[53,"Московский","О-06-08",6,6,"Муниципальное автономное общеобразовательное учреждение \"Гимназия № 67\"",40,"участник",null,"Раков Антон Сергеевич"]
[54,"Московский","О-6-20",6,6,"Муниципальное автономное общеобразовательное учреждение  \"Школа № 118 с углубленным изучением отдельных предметов\"",40,"участник",null,"Новоселова Мария Александровна"]
[55,"Московский","ОБ-6-02",6,6,"Муниципальное автономное  общеобразовательное учреждение \"Школа №172\"",39,"участник",null,"Дакудина Яна Дмитриевна"]
[56,"Московский","О-6-12",6,6,"Муниципальное автономное общеобразовательное учреждение  \"Школа № 118 с углубленным изучением отдельных предметов\"",39,"участник",null,"Новоселова Мария Александровна"]
[57,"Московский","О-6-13",6,6,"Муниципальное автономное общеобразовательное учреждение  \"Школа № 118 с углубленным изучением отдельных предметов\"",39,"участник",null,"Новоселова Мария Александровна"]
[58,"Московский","О-6-45",6,6,"Муниципальное автономное  общеобразовательное учреждение \"Школа №178\"",38,"участник",null,"Чеснокова Ольга Андреевна"]
[59,"Московский","О6-2",6,6,"Муниципальное  бюджетное  общеобразовательное учреждение \"Школа № 146\"",38,"участник",null,"Писаревская Наталья Николаевна"]
[60,"Московский","ОБ-6-01",6,6,"Муниципальное автономное  общеобразовательное учреждение \"Школа №172\"",37,"участник",null,"Дакудина Яна Дмитриевна"]
[61,"Московский","ОБ-6-03",6,6,"Муниципальное автономное  общеобразовательное учреждение \"Школа №172\"",37,"участник",null,"Дакудина Яна Дмитриевна"]
[62,"Московский","и-6-3",6,6,"Муниципальное автономное  общеобразовательное учреждение \"Школа №74 с углубленным изучением отдельных предметов\"",36,"участник",null,"Шибалова Юлия Александровна"]
[63,"Московский","О-6-18",6,6,"Муниципальное автономное общеобразовательное учреждение  \"Школа № 118 с углубленным изучением отдельных предметов\"",36,"участник",null,"Новоселова Мария Александровна"]
[64,"Московский","ОБ-06-72",6,6,"Муниципальное  бюджетное  общеобразовательное учреждение \"Школа № 21\"",35,"участник",null,"Мельникова Екатерина Андреевна"]
[65,"Московский","О-6-44",6,6,"Муниципальное автономное  общеобразовательное учреждение \"Школа №178\"",34,"участник",null,"Чеснокова Ольга Андреевна"]
[66,"Московский","общ -11-6-1",6,6,"Муниципальное бюджетное общеобразовательное учреждение  \"Лицей № 87 имени Л.И. Новиковой\" ",34,"участник",null,"Кочетова Софья Ивановна"]
[67,"Московский","О-6-10",6,6,"Муниципальное автономное общеобразовательное учреждение  \"Школа № 118 с углубленным изучением отдельных предметов\"",34,"участник",null,"Новоселова Мария Александровна"]
[68,"Московский","О-60239",6,6,"Муниципальное бюджетное общеобразовательное учреждение \"Школа № 69\"",34,"участник",null,"Миртова Ирина Владимировна"]
[69,"Московский","ОБ-6-17",6,6,"Муниципальное автономное  общеобразовательное учреждение \"Школа №172\"",33,"участник",null,"Карпова Ольга Валерьевна"]
[70,"Московский","О-6-19",6,6,"Муниципальное автономное общеобразовательное учреждение  \"Школа № 118 с углубленным изучением отдельных предметов\"",33,"участник",null,"Новоселова Мария Александровна"]
[71,"Московский","О-6-21",6,6,"Муниципальное автономное общеобразовательное учреждение  \"Школа № 118 с углубленным изучением отдельных предметов\"",33,"участник",null,"Новоселова Мария Александровна"]
[72,"Московский","ОБ-6-19",6,6,"Муниципальное автономное  общеобразовательное учреждение \"Школа №172\"",32,"участник",null,"Карпова Ольга Валерьевна"]
[73,"Московский","О-6-5",6,6,"Муниципальное автономное общеобразовательное учреждение  \"Школа № 118 с углубленным изучением отдельных предметов\"",32,"участник",null,"Новоселова Мария Александровна"]
[74,"Московский","О-6-1",6,6,"Муниципальное бюджетное общеобразовательное учреждение \"Школа № 73\"",32,"участник",null,"Кузнецова Ольга Николаевна"]
[75,"Московский","О-6-8",6,6,"муниципальное автономное  общеобразовательное учреждение \"Школа № 70 с углубленным изучением отдельных предметов\"",31,"участник",null,"Сутягин Николай Александрович"]
[76,"Московский","ОБ-6-13",6,6,"Муниципальное автономное  общеобразовательное учреждение \"Школа №172\"",31,"участник",null,"Карпова Ольга Валерьевна"]
[77,"Московский","О-60739",6,6,"Муниципальное бюджетное общеобразовательное учреждение \"Школа № 69\"",31,"участник",null,"Миртова Ирина Владимировна"]
[78,"Московский","О 6-2",6,6,"Муниципальное автономное  общеобразовательное учреждение \"Школа № 149\"\n",30,"участник",null,"Селегененко Любовь Валерьевна"]
[79,"Московский","О-6-5",6,6,"Муниципальное бюджетное общеобразовательное учреждение \"Школа №115\"",29,"участник",null,"Симахина Евгения Александровна"]
[80,"Московский","О-6-2",6,6,"муниципальное автономное  общеобразовательное учреждение \"Школа № 70 с углубленным изучением отдельных предметов\"",29,"участник",null,"Сутягин Николай Александрович"]
[81,"Московский","ОБ-6-04",6,6,"Муниципальное автономное  общеобразовательное учреждение \"Школа №172\"",29,"участник",null,"Дакудина Яна Дмитриевна"]
[82,"Московский","О 6-3",6,6,"Муниципальное автономное  общеобразовательное учреждение \"Школа № 149\"\n",29,"участник",null,"Селегененко Любовь Валерьевна"]
[83,"Московский","О 6-4",6,6,"Муниципальное автономное  общеобразовательное учреждение \"Школа № 149\"\n",29,"участник",null,"Селегененко Любовь Валерьевна"]
[84,"Московский","О-60339",6,6,"Муниципальное бюджетное общеобразовательное учреждение \"Школа № 69\"",29,"участник",null,"Миртова Ирина Владимировна"]
[85,"Московский","и-6-6",6,6,"Муниципальное автономное  общеобразовательное учреждение \"Школа №74 с углубленным изучением отдельных предметов\"",28,"участник",null,"Шибалова Юлия Александровна"]
[86,"Московский","ОБ-6-16",6,6,"Муниципальное автономное  общеобразовательное учреждение \"Школа №172\"",28,"участник",null,"Карпова Ольга Валерьевна"]
[87,"Московский","О-6-46",6,6,"Муниципальное автономное  общеобразовательное учреждение \"Школа №178\"",27,"участник",null,"Чеснокова Ольга Андреевна"]
[88,"Московский","О-6-41",6,6,"Муниципальное автономное  общеобразовательное учреждение \"Школа №178\"",27,"участник",null,"Чеснокова Ольга Андреевна"]
[89,"Московский","ОБ-06-83",6,6,"Муниципальное  бюджетное  общеобразовательное учреждение \"Школа № 21\"",27,"участник",null,"Мельникова Екатерина Андреевна"]
[90,"Московский","ОБ-6-05",6,6,"Муниципальное автономное  общеобразовательное учреждение \"Школа №172\"",27,"участник",null,"Дакудина Яна Дмитриевна"]
[91,"Московский","О-60539",6,6,"Муниципальное бюджетное общеобразовательное учреждение \"Школа № 69\"",26,"участник",null,"Миртова Ирина Владимировна"]
[92,"Московский","ОШ-1",6,6,"Муниципальное бюджетное общеобразовательное учреждение \"Школа №93\"",26,"участник",null,"Дикушева Татьяна Михайловна"]
[93,"Московский","О-06-05",6,6,"Муниципальное автономное общеобразовательное учреждение \"Гимназия № 67\"",25,"участник",null,"Раков Антон Сергеевич"]
[94,"Московский","О-6-2",6,6,"Муниципальное автономное общеобразовательное учреждение  \"Школа № 118 с углубленным изучением отдельных предметов\"",25,"участник",null,"Новоселова Мария Александровна"]
[95,"Московский","и-6-2",6,6,"Муниципальное автономное  общеобразовательное учреждение \"Школа №74 с углубленным изучением отдельных предметов\"",24,"участник",null,"Шибалова Юлия Александровна"]
[96,"Московский","О-6-3",6,6,"муниципальное автономное  общеобразовательное учреждение \"Школа № 70 с углубленным изучением отдельных предметов\"",24,"участник",null,"Сутягин Николай Александрович"]
[97,"Московский","О-6-11",6,6,"муниципальное автономное  общеобразовательное учреждение \"Школа № 70 с углубленным изучением отдельных предметов\"",24,"участник",null,"Сутягин Николай Александрович"]
[98,"Московский","О 6-5",6,6,"Муниципальное автономное  общеобразовательное учреждение \"Школа № 149\"\n",23,"участник",null,"Селегененко Любовь Валерьевна"]
[99,"Московский","и-6-9",6,6,"Муниципальное автономное  общеобразовательное учреждение \"Школа №74 с углубленным изучением отдельных предметов\"",22,"участник",null,"Шибалова Юлия Александровна"]
[100,"Московский","О 6-6",6,6,"Муниципальное автономное  общеобразовательное учреждение \"Школа № 149\"\n",20,"участник",null,"Селегененко Любовь Валерьевна"]
[101,"Московский","и6-7",6,6,"Муниципальное автономное  общеобразовательное учреждение \"Школа №74 с углубленным изучением отдельных предметов\"",18,"участник",null,"Шибалова Юлия Александровна"]
[102,"Московский","О-06-04",6,6,"Муниципальное автономное общеобразовательное учреждение \"Гимназия № 67\"",18,"участник",null,"Раков Антон Сергеевич"]
[103,"Московский","О-06-06",6,6,"Муниципальное автономное общеобразовательное учреждение \"Гимназия № 67\"",16,"участник",null,"Раков Антон Сергеевич"]
[104,"Московский","ОБ-06-53",6,6,"Муниципальное  бюджетное  общеобразовательное учреждение \"Школа № 21\"",14,"участник",null,"Мельникова Екатерина Андреевна"]

{"sheet":"Обществознание 7","index":1,"n_rows":166,"n_cols":10,"rows_kept":166,"cut":false,"hidden":false,"merged":[[0,2,0,9]]}
[]
[]
[null,null,100]
[]
["№ п/п","Муниципалитет","Шифр (код) выданный ребенку","класс обучается","класс выступает","ОО, в которой обучается (полное название по УСТАВУ)","Количество набранных баллов","Статус","Победитель/призер МЭ 2021-2022 (статус)*","ФИО учителя (наставника)"]
[1,"Московский","О-7-1",7,7,"Муниципальное автономное  общеобразовательное учреждение \"Школа № 178\"",84,"победитель",null,"Дубынина Ирина Николаевна"]
[2,"Московский","ОБ-7-7",7,7,"Муниципальное автономное общеобразовательное учреждение \"Школа №172\"",84,"победитель",null,"Гаммель Александр Владимирович"]
[3,"Московский","О-7-07",7,7,"Муниципальное автономное общеобразовательное учреждение \"Гимназия № 67\"",82,"призер",null,"Казакова Ульяна Владимировна"]
[4,"Московский","О-7-2",7,7,"Муниципальное автономное общеобразовательное учреждение  \"Школа № 118 с углубленным изучением отдельных предметов\"",83,"победитель",null,"Сосенкова Светлана Алексеевна"]
[5,"Московский","О-7-06",7,7,"Муниципальное автономное общеобразовательное учреждение \"Гимназия № 67\"",82,"призер",null,"Казакова Ульяна Владимировна"]
[6,"Московский","О-7-5",7,7,"Муниципальное автономное общеобразовательное учреждение  \"Школа № 118 с углубленным изучением отдельных предметов\"",82,"призер",null,"Сосенкова Светлана Алексеевна"]
[7,"Московский","ОБ7А-1",7,7,"Муниципальное  бюджетное  общеобразовательное учреждение \"Школа № 66\"",82,"призер",null,"Малов Сергей Вячеславович"]
[8,"Московский","Ш-7-8",7,7,"Муниципальное автономное  общеобразовательное учреждение \"Школа № 139\"",82,"призер",null,"Казакова Марина Анатольевна"]
[9,"Московский","О-7-05",7,7,"Муниципальное автономное общеобразовательное учреждение \"Гимназия № 67\"",82,"призер",null,"Казакова Ульяна Владимировна"]
[10,"Московский","О-7-3",7,7,"Муниципальное автономное общеобразовательное учреждение  \"Школа № 118 с углубленным изучением отдельных предметов\"",81,"призер",null,"Сосенкова Светлана Алексеевна"]
[11,"Московский","общ-11-7-7",7,7,"Муниципальное бюджетное общеобразовательное учреждение  \"Лицей № 87 имени Л.И. Новиковой\" ",81,"призер",null,"Кочетова Софья Ивановна"]
[12,"Московский","О-7-8",7,7,"Муниципальное автономное общеобразовательное учреждение  \"Школа № 118 с углубленным изучением отдельных предметов\"",81,"призер",null,"Сосенкова Светлана Алексеевна"]
[13,"Московский","О-7-08",7,7,"Муниципальное автономное общеобразовательное учреждение \"Гимназия № 67\"",81,"призер",null,"Казакова Ульяна Владимировна"]
[14,"Московский","и-7-7",7,7,"Муниципальное автономное  общеобразовательное учреждение \"Школа №74 с углубленным изучением отдельных предметов\"",80,"призер",null,"Шибалова Юлия Александровна"]
[15,"Московский","Ш-7-4",7,7,"Муниципальное автономное  общеобразовательное учреждение \"Школа № 139\"",79,"призер",null,"Казакова Марина Анатольевна"]
[16,"Московский","общ-11-7-6",7,7,"Муниципальное бюджетное общеобразовательное учреждение  \"Лицей № 87 имени Л.И. Новиковой\" ",79,"призер",null,"Кочетова Софья Ивановна"]
[17,"Московский","О-7-09",7,7,"Муниципальное автономное общеобразовательное учреждение \"Гимназия № 67\"",79,"призер",null,"Казакова Ульяна Владимировна"]
[18,"Московский","и-7-8",7,7,"Муниципальное автономное  общеобразовательное учреждение \"Школа №74 с углубленным изучением отдельных предметов\"",78,"призер",null,"Шибалова Юлия Александровна"]
[19,"Московский","0-7-1",7,7,"Муниципальное автономное  общеобразовательное учреждение \"Школа № 149\"",78,"призер",null,"Богатова Валентина Николаевна"]
[20,"Московский","Ш-7-3",7,7,"Муниципальное автономное  общеобразовательное учреждение \"Школа № 139\"",76,"призер",null,"Казакова Марина Анатольевна"]
[21,"Московский","О-7-01",7,7,"Муниципальное автономное общеобразовательное учреждение \"Гимназия № 67\"",75,"призер",null,"Казакова Ульяна Владимировна"]
[22,"Московский","О-7-03",7,7,"Муниципальное автономное общеобразовательное учреждение \"Гимназия № 67\"",75,"призер",null,"Казакова Ульяна Владимировна"]
[23,"Московский","О-7-2",7,7,"муниципальное автономное  общеобразовательное учреждение \"Школа № 70 с углубленным изучением отдельных предметов\"",75,"призер",null,"Сутягин Николай Александрович"]
[24,"Московский","ОС-5",7,7,"Муниципальное бюджетное общеобразовательное учреждение \"Школа №93\"",74,"призер",null,"Рослова Лариса Вячеславовна"]
[25,"Московский","О-7-04",7,7,"Муниципальное автономное общеобразовательное учреждение \"Гимназия № 67\"",74,"призер",null,"Казакова Ульяна Владимировна"]
[26,"Московский","О-7-1",7,7,"Муниципальное автономное общеобразовательное учреждение  \"Школа № 118 с углубленным изучением отдельных предметов\"",73,"призер",null,"Сосенкова Светлана Алексеевна"]
[27,"Московский","О-7-9",7,7,"Муниципальное автономное общеобразовательное учреждение  \"Школа № 118 с углубленным изучением отдельных предметов\"",73,"призер",null,"Тавокина Любовь Викторовна"]
[28,"Московский","О-7-7",7,7,"Муниципальное автономное общеобразовательное учреждение  \"Школа № 118 с углубленным изучением отдельных предметов\"",72,"призер",null,"Сосенкова Светлана Алексеевна"]
[29,"Московский","ОС-3",7,7,"Муниципальное бюджетное общеобразовательное учреждение \"Школа №93\"",72,"призер",null,"Рослова Лариса Вячеславовна"]
[30,"Московский","ОС-6",7,7,"Муниципальное бюджетное общеобразовательное учреждение \"Школа №93\"",72,"призер",null,"Рослова Лариса Вячеславовна"]
[31,"Московский","Ш-7-1",7,7,"Муниципальное автономное  общеобразовательное учреждение \"Школа № 139\"",72,"призер",null,"Казакова Марина Анатольевна"]
[32,"Московский","О-7-9",7,7,"муниципальное автономное  общеобразовательное учреждение \"Школа № 70 с углубленным изучением отдельных предметов\"",72,"призер",null,"Сутягин Николай Александрович"]
[33,"Московский","общ-11-7-18",7,7,"Муниципальное бюджетное общеобразовательное учреждение  \"Лицей № 87 имени Л.И. Новиковой\" ",70,"призер",null,"Мамаев Владимир Владимирович"]
[34,"Московский","общ-11-7-16",7,7,"Муниципальное бюджетное общеобразовательное учреждение  \"Лицей № 87 имени Л.И. Новиковой\" ",70,"призер",null,"Мамаев Владимир Владимирович"]
[35,"Московский","О-7-8",7,7,"муниципальное автономное  общеобразовательное учреждение \"Школа № 70 с углубленным изучением отдельных предметов\"",70,"призер",null,"Сутягин Николай Александрович"]
[36,"Московский","общ-11-7-12",7,7,"Муниципальное бюджетное общеобразовательное учреждение  \"Лицей № 87 имени Л.И. Новиковой\" ",70,"призер",null,"Мамаев Владимир Владимирович"]
[37,"Московский","О-7-24",7,7,"Муниципальное автономное  общеобразовательное учреждение \"Школа № 178\"",68,"призер",null,"Дубынина Ирина Николаевна"]
[38,"Московский","обш-11-7-5",7,7,"Муниципальное бюджетное общеобразовательное учреждение  \"Лицей № 87 имени Л.И. Новиковой\" ",68,"призер",null,"Кочетова Софья Ивановна"]
[39,"Московский","О-7-16",7,7,"Муниципальное бюджетное общеобразовательное учреждение \"Школа №115\"",68,"призер",null,"Жукова Евгения Борисовна"]
[40,"Московский","0-7-12",7,7,"Муниципальное автономное  общеобразовательное учреждение \"Школа № 149\"",67,"призер",null,"Богатова Валентина Николаевна"]
[41,"Московский","0-7-9",7,7,"Муниципальное автономное  общеобразовательное учреждение \"Школа № 149\"",67,"призер",null,"Богатова Валентина Николаевна"]
[42,"Московский","общ-11-7-21",7,7,"Муниципальное бюджетное общеобразовательное учреждение  \"Лицей № 87 имени Л.И. Новиковой\" ",67,"призер",null,"Мамаев Владимир Владимирович"]
[43,"Московский",")-7001",7,7,"Муниципальное бюджетное общеобразовательное учреждение \"Школа № 69\"",64,"призер",null,"Муравьева Ольга Николаевна"]
[44,"Московский","ОБ-7-2",7,7,"Муниципальное автономное общеобразовательное учреждение \"Школа №172\"",64,"призер",null,"Гаммель Александр Владимирович"]
[45,"Московский","О-7-10",7,7,"муниципальное автономное  общеобразовательное учреждение \"Школа № 70 с углубленным изучением отдельных предметов\"",64,"призер",null,"Сутягин Николай Александрович"]
[46,"Московский","О-7-4",7,7,"муниципальное автономное  общеобразовательное учреждение \"Школа № 70 с углубленным изучением отдельных предметов\"",64,"призер",null,"Сутягин Николай Александрович"]
[47,"Московский","ОБ-7-4",7,7,"Муниципальное автономное общеобразовательное учреждение \"Школа №172\"",64,"призер",null,"Гаммель Александр Владимирович"]
[48,"Московский","ОБ-7-9",7,7,"Муниципальное автономное общеобразовательное учреждение \"Школа №172\"",63,"призер",null,"Дакудина Яна Дмитриевна "]
[49,"Московский","0-7-6",7,7,"Муниципальное автономное  общеобразовательное учреждение \"Школа № 149\"",63,"призер",null,"Богатова Валентина Николаевна"]
[50,"Московский","О7-5",7,7,"Муниципальное  бюджетное  общеобразовательное учреждение \"Школа № 146\"",62,"участник",null,"Писаревская Наталья Николаевна"]
[51,"Московский","О-7-3",7,7,"муниципальное автономное  общеобразовательное учреждение \"Школа № 70 с углубленным изучением отдельных предметов\"",62,"участник",null,"Сутягин Николай Александрович"]
[52,"Московский","0-7-8",7,7,"Муниципальное автономное  общеобразовательное учреждение \"Школа № 149\"",62,"участник",null,"Богатова Валентина Николаевна"]
[53,"Московский","О-7-6",7,7,"Муниципальное автономное общеобразовательное учреждение  \"Школа № 118 с углубленным изучением отдельных предметов\"",62,"участник",null,"Сосенкова Светлана Алексеевна"]
[54,"Московский","О-7-7",7,7,"муниципальное автономное  общеобразовательное учреждение \"Школа № 70 с углубленным изучением отдельных предметов\"",61,"участник",null,"Сутягин Николай Александрович"]
[55,"Московский","общ-11-7-20",7,7,"Муниципальное бюджетное общеобразовательное учреждение  \"Лицей № 87 имени Л.И. Новиковой\" ",61,"участник",null,"Мамаев Владимир Владимирович"]
[56,"Московский","0-7-11",7,7,"Муниципальное автономное  общеобразовательное учреждение \"Школа № 149\"",61,"участник",null,"Богатова Валентина Николаевна"]
[57,"Московский","О-7-8",7,7,"Муниципальное бюджетное общеобразовательное учреждение \"Школа №115\"",60,"участник",null,"Юдина Ксения Вячеславовна"]
[58,"Московский","О7-2",7,7,"Муниципальное  бюджетное  общеобразовательное учреждение \"Школа № 146\"",59,"участник",null,"Писаревская Наталья Николаевна"]
[59,"Московский","ОБ7А-3",7,7,"Муниципальное  бюджетное  общеобразовательное учреждение \"Школа № 66\"",59,"участник",null,"Малов Сергей Вячеславович"]
[60,"Московский","общ-11-7-1",7,7,"Муниципальное бюджетное общеобразовательное учреждение  \"Лицей № 87 имени Л.И. Новиковой\" ",59,"участник",null,"Кочетова Софья Ивановна"]
[61,"Московский","общ-11-7-9",7,7,"Муниципальное бюджетное общеобразовательное учреждение  \"Лицей № 87 имени Л.И. Новиковой\" ",59,"участник",null,"Кочетова Софья Ивановна"]
[62,"Московский","Ш-7-2",7,7,"Муниципальное автономное  общеобразовательное учреждение \"Школа № 139\"",59,"участник",null,"Казакова Марина Анатольевна"]
[63,"Московский","О-7-10",7,7,"Муниципальное автономное общеобразовательное учреждение  \"Школа № 118 с углубленным изучением отдельных предметов\"",59,"участник",null,"Тавокина Любовь Викторовна"]
[64,"Московский","О-7-5",7,7,"муниципальное автономное  общеобразовательное учреждение \"Школа № 70 с углубленным изучением отдельных предметов\"",58,"участник",null,"Сутягин Николай Александрович"]
[65,"Московский","общ-11-7-19",7,7,"Муниципальное бюджетное общеобразовательное учреждение  \"Лицей № 87 имени Л.И. Новиковой\" ",58,"участник",null,"Мамаев Владимир Владимирович"]
[66,"Московский","0-7-2",7,7,"Муниципальное автономное  общеобразовательное учреждение \"Школа № 149\"",58,"участник",null,"Богатова Валентина Николаевна"]
[67,"Московский","0-7-3",7,7,"Муниципальное автономное  общеобразовательное учреждение \"Школа № 149\"",58,"участник",null,"Богатова Валентина Николаевна"]
[68,"Московский","общ-11-7-17",7,7,"Муниципальное бюджетное общеобразовательное учреждение  \"Лицей № 87 имени Л.И. Новиковой\" ",57,"участник",null,"Мамаев Владимир Владимирович"]
[69,"Московский","общ-11-7-22",7,7,"Муниципальное бюджетное общеобразовательное учреждение  \"Лицей № 87 имени Л.И. Новиковой\" ",57,"участник",null,"Мамаев Владимир Владимирович"]
[70,"Московский","0-7-10",7,7,"Муниципальное автономное  общеобразовательное учреждение \"Школа № 149\"",57,"участник",null,"Богатова Валентина Николаевна"]
[71,"Московский","О-7-13",7,7,"Муниципальное бюджетное общеобразовательное учреждение \"Школа №115\"",56,"участник",null,"Жукова Евгения Борисовна"]
[72,"Московский","ОБ-07-30",7,7,"Муниципальное  бюджетное  общеобразовательное учреждение \"Школа № 21\"",56,"участник",null,"Мельникова Екатерина Андреевна"]
[73,"Московский","О-7-02",7,7,"Муниципальное автономное общеобразовательное учреждение \"Гимназия № 67\"",56,"участник",null,"Казакова Ульяна Владимировна"]
[74,"Московский","О-7-4",7,7,"Муниципальное автономное общеобразовательное учреждение  \"Школа № 118 с углубленным изучением отдельных предметов\"",56,"участник",null,"Сосенкова Светлана Алексеевна"]
[75,"Московский","ОС-7",7,7,"Муниципальное бюджетное общеобразовательное учреждение \"Школа №93\"",56,"участник",null,"Рослова Лариса Вячеславовна"]
[76,"Московский","ОБ-07-79",7,7,"Муниципальное  бюджетное  общеобразовательное учреждение \"Школа № 21\"",55,"участник",null,"Мельникова Екатерина Андреевна"]
[77,"Московский","ОБ-7-6",7,7,"Муниципальное автономное общеобразовательное учреждение \"Школа №172\"",55,"участник",null,"Гаммель Александр Владимирович"]
[78,"Московский","ОБ7А-4",7,7,"Муниципальное  бюджетное  общеобразовательное учреждение \"Школа № 66\"",54,"участник",null,"Малов Сергей Вячеславович"]
[79,"Московский","О-7-6",7,7,"муниципальное автономное  общеобразовательное учреждение \"Школа № 70 с углубленным изучением отдельных предметов\"",54,"участник",null,"Сутягин Николай Александрович"]
[80,"Московский","О7-1",7,7,"Муниципальное  бюджетное  общеобразовательное учреждение \"Школа № 146\"",53,"участник",null,"Писаревская Наталья Николаевна"]
[81,"Московский","ОБ-07-76",7,7,"Муниципальное  бюджетное  общеобразовательное учреждение \"Школа № 21\"",53,"участник",null,"Мельникова Екатерина Андреевна"]
[82,"Московский","О-7-5",7,7,"Муниципальное бюджетное общеобразовательное учреждение \"Школа № 73\"",53,"участник",null,"Кузнецова Ольга Николаевна"]
[83,"Московский","О-7-13",7,7,"Муниципальное бюджетное общеобразовательное учреждение \"Школа № 73\"",53,"участник",null,"Скворцова Анна Ивановна"]
[84,"Московский","О-7-1",7,7,"Муниципальное бюджетное общеобразовательное учреждение \"Школа № 73\"",53,"участник",null,"Кузнецова Ольга Николаевна"]
[85,"Московский","ОБ-7-3",7,7,"Муниципальное автономное общеобразовательное учреждение \"Школа №172\"",52,"участник",null,"Гаммель Александр Владимирович"]
[86,"Московский","Ш-7-5",7,7,"Муниципальное автономное  общеобразовательное учреждение \"Школа № 139\"",52,"участник",null,"Казакова Марина Анатольевна"]
[87,"Московский","О-7-12",7,7,"Муниципальное бюджетное общеобразовательное учреждение \"Школа № 73\"",52,"участник",null,"Скворцова анна Ивановна"]
[88,"Московский","ОС-1",7,7,"Муниципальное бюджетное общеобразовательное учреждение \"Школа №93\"",52,"участник",null,"Рослова Лариса Вячеславовна"]
[89,"Московский","ОС-8",7,7,"Муниципальное бюджетное общеобразовательное учреждение \"Школа №93\"",52,"участник",null,"Рослова Лариса Вячеславовна"]
[90,"Московский","О-7-4",7,7,"Муниципальное бюджетное общеобразовательное учреждение \"Школа №115\"",51,"участник",null,"Юдина Ксения Вячеславовна"]
[91,"Московский","О-7-19",7,7,"Муниципальное бюджетное общеобразовательное учреждение \"Школа №115\"",51,"участник",null,"Жукова Евгения Борисовна"]
[92,"Московский","ОБ7А-6",7,7,"Муниципальное  бюджетное  общеобразовательное учреждение \"Школа № 66\"",51,"участник",null,"Малов Сергей Вячеславович"]
[93,"Московский","ОБ7В-5",7,7,"Муниципальное  бюджетное  общеобразовательное учреждение \"Школа № 66\"",51,"участник",null,"Малов Сергей Вячеславович"]
[94,"Московский","О-7-1",7,7,"муниципальное автономное  общеобразовательное учреждение \"Школа № 70 с углубленным изучением отдельных предметов\"",51,"участник",null,"Сутягин Николай Александрович"]
[95,"Московский","ОБ-7-5",7,7,"Муниципальное автономное общеобразовательное учреждение \"Школа №172\"",51,"участник",null,"Гаммель Александр Владимирович"]
[96,"Московский","0-7-4",7,7,"Муниципальное автономное  общеобразовательное учреждение \"Школа № 149\"",51,"участник",null,"Богатова Валентина Николаевна"]
[97,"Московский","общ-11-7-11",7,7,"Муниципальное бюджетное общеобразовательное учреждение  \"Лицей № 87 имени Л.И. Новиковой\" ",50,"участник",null,"Мамаев Владимир Владимирович"]
[98,"Московский","ОБ-7-1",7,7,"Муниципальное автономное общеобразовательное учреждение \"Школа №172\"",50,"участник",null,"Гаммель Александр Владимирович"]
[99,"Московский","О-7-3",7,7,"Муниципальное бюджетное общеобразовательное учреждение \"Школа № 73\"",50,"участник",null,"Кузнецова Ольга Николаевна"]
[100,"Московский","О-7-29",7,7,"Муниципальное автономное  общеобразовательное учреждение \"Школа № 178\"",49,"участник",null,"Дубынина Ирина Николаевна"]
[101,"Московский","О-7-22",7,7,"Муниципальное бюджетное общеобразовательное учреждение \"Школа №115\"",49,"участник",null,"Жукова Евгения Борисовна"]
[102,"Московский","общ-11-7-3",7,7,"Муниципальное бюджетное общеобразовательное учреждение  \"Лицей № 87 имени Л.И. Новиковой\" ",49,"участник",null,"Кочетова Софья Ивановна"]
[103,"Московский","О-7-22",7,7,"Муниципальное автономное  общеобразовательное учреждение \"Школа № 178\"",48,"участник",null,"Чеснокова Ольга Андреевна"]
[104,"Московский","О-7-10",7,7,"Муниципальное бюджетное общеобразовательное учреждение \"Школа №115\"",48,"участник",null,"Жукова Евгения Борисовна"]
[105,"Московский","О-7-5",7,7,"Муниципальное бюджетное общеобразовательное учреждение \"Школа №115\"",48,"участник",null,"Юдина Ксения Вячеславовна"]
[106,"Московский","О7-3",7,7,"Муниципальное  бюджетное  общеобразовательное учреждение \"Школа № 146\"",48,"участник",null,"Писаревская Наталья Николаевна"]
[107,"Московский","О7-4",7,7,"Муниципальное  бюджетное  общеобразовательное учреждение \"Школа № 146\"",48,"участник",null,"Писаревская Наталья Николаевна"]
[108,"Московский","0-7-7",7,7,"Муниципальное автономное  общеобразовательное учреждение \"Школа № 149\"",48,"участник",null,"Богатова Валентина Николаевна"]
[109,"Московский","ОС-2",7,7,"Муниципальное бюджетное общеобразовательное учреждение \"Школа №93\"",48,"участник",null,"Рослова Лариса Вячеславовна"]
[110,"Московский","О-7-9",7,7,"Муниципальное бюджетное общеобразовательное учреждение \"Школа №115\"",47,"участник",null,"Жукова Евгения Борисовна"]
[111,"Московский","общ-11-7-14",7,7,"Муниципальное бюджетное общеобразовательное учреждение  \"Лицей № 87 имени Л.И. Новиковой\" ",47,"участник",null,"Мамаев Владимир Владимирович"]
[112,"Московский","общ -11-7-8",7,7,"Муниципальное бюджетное общеобразовательное учреждение  \"Лицей № 87 имени Л.И. Новиковой\" ",46,"участник",null,"Кочетова Софья Ивановна"]
[113,"Московский","общ-11-7-15",7,7,"Муниципальное бюджетное общеобразовательное учреждение  \"Лицей № 87 имени Л.И. Новиковой\" ",46,"участник",null,"Мамаев Владимир Владимирович"]
[114,"Московский","ОС-4",7,7,"Муниципальное бюджетное общеобразовательное учреждение \"Школа №93\"",46,"участник",null,"Рослова Лариса Вячеславовна"]
[115,"Московский","О-7-18",7,7,"Муниципальное автономное  общеобразовательное учреждение \"Школа № 178\"",45,"участник",null,"Чеснокова Ольга Андреевна"]
[116,"Московский","О-7-4",7,7,"Муниципальное бюджетное общеобразовательное учреждение \"Школа № 73\"",45,"участник",null,"Кузнецова Ольга Николаевна"]
[117,"Московский","и-7-4",7,7,"Муниципальное автономное  общеобразовательное учреждение \"Школа №74 с углубленным изучением отдельных предметов\"",44,"участник",null,"Шибалова Юлия Александровна"]
[118,"Московский","и-7-6",7,7,"Муниципальное автономное  общеобразовательное учреждение \"Школа №74 с углубленным изучением отдельных предметов\"",44,"участник",null,"Шибалова Юлия Александровна"]
[119,"Московский","общ-11-7-23",7,7,"Муниципальное бюджетное общеобразовательное учреждение  \"Лицей № 87 имени Л.И. Новиковой\" ",44,"участник",null,"Мамаев Владимир Владимирович"]
[120,"Московский","ОБ-7-8",7,7,"Муниципальное автономное общеобразовательное учреждение \"Школа №172\"",43,"участник",null,"Дакудина Яна Дмитриевна "]
[121,"Московский","О-7-19",7,7,"Муниципальное автономное  общеобразовательное учреждение \"Школа № 178\"",42,"участник",null,"Дубынина Ирина Николаевна"]
[122,"Московский","и-7-1",7,7,"Муниципальное автономное  общеобразовательное учреждение \"Школа №74 с углубленным изучением отдельных предметов\"",42,"участник",null,"Шибалова Юлия Александровна"]
[123,"Московский","и-7-5",7,7,"Муниципальное автономное  общеобразовательное учреждение \"Школа №74 с углубленным изучением отдельных предметов\"",42,"участник",null,"Шибалова Юлия Александровна"]
[124,"Московский","ОБ-07-21",7,7,"Муниципальное  бюджетное  общеобразовательное учреждение \"Школа № 21\"",42,"участник",null,"Мельникова Екатерина Андреевна"]
[125,"Московский","О-7-23",7,7,"Муниципальное автономное  общеобразовательное учреждение \"Школа № 178\"",41,"участник",null,"Дубынина Ирина Николаевна"]
[126,"Московский","О-7-15",7,7,"Муниципальное бюджетное общеобразовательное учреждение \"Школа №115\"",41,"участник",null,"Жукова Евгения Борисовна"]
[127,"Московский","0-7-5",7,7,"Муниципальное автономное  общеобразовательное учреждение \"Школа № 149\"",41,"участник",null,"Богатова Валентина Николаевна"]
[128,"Московский","О-7-14",7,7,"Муниципальное бюджетное общеобразовательное учреждение \"Школа №115\"",40,"участник",null,"Жукова Евгения Борисовна"]
[129,"Московский","О-7-12",7,7,"Муниципальное бюджетное общеобразовательное учреждение \"Школа №115\"",40,"участник",null,"Жукова Евгения Борисовна"]
[130,"Московский","О-7-18",7,7,"Муниципальное бюджетное общеобразовательное учреждение \"Школа №115\"",40,"участник",null,"Жукова Евгения Борисовна"]
[131,"Московский","и-7-3",7,7,"Муниципальное автономное  общеобразовательное учреждение \"Школа №74 с углубленным изучением отдельных предметов\"",40,"участник",null,"Шибалова Юлия Александровна"]
[132,"Московский","О-7-8",7,7,"Муниципальное бюджетное общеобразовательное учреждение \"Школа № 73\"",40,"участник",null,"Кузнецова Ольга Николаевна"]
[133,"Московский","О-7-28",7,7,"Муниципальное автономное  общеобразовательное учреждение \"Школа № 178\"",39,"участник",null,"Дубынина Ирина Николаевна"]
[134,"Московский","Ш-7-7",7,7,"Муниципальное автономное  общеобразовательное учреждение \"Школа № 139\"",39,"участник",null,"Казакова Марина Анатольевна"]
[135,"Московский","О-7-9",7,7,"Муниципальное бюджетное общеобразовательное учреждение \"Школа № 73\"",39,"участник",null,"Кузнецова Ольга Николаевна"]
[136,"Московский","О-7-21",7,7,"Муниципальное автономное  общеобразовательное учреждение \"Школа № 178\"",38,"участник",null,"Дубынина Ирина Николаевна"]
[137,"Московский","ОБ-7-12",7,7,"Муниципальное автономное общеобразовательное учреждение \"Школа №172\"",38,"участник",null,"Дакудина Яна Дмитриевна "]
[138,"Московский","О-7-20",7,7,"Муниципальное автономное  общеобразовательное учреждение \"Школа № 178\"",37,"участник",null,"Чеснокова Ольга Андреевна"]
[139,"Московский","общ-11-7-4",7,7,"Муниципальное бюджетное общеобразовательное учреждение  \"Лицей № 87 имени Л.И. Новиковой\" ",37,"участник",null,"Кочетова Софья Ивановна"]
[140,"Московский","Ш-7-6",7,7,"Муниципальное автономное  общеобразовательное учреждение \"Школа № 139\"",36,"участник",null,"Казакова Марина Анатольевна"]
[141,"Московский","О-7-2",7,7,"Муниципальное бюджетное общеобразовательное учреждение \"Школа № 73\"",36,"участник",null,"Кузнецова Ольга Николаевна"]
[142,"Московский","О-7-6",7,7,"Муниципальное бюджетное общеобразовательное учреждение \"Школа №115\"",34,"участник",null,"Юдина Ксения Вячеславовна"]
[143,"Московский","и-7-2",7,7,"Муниципальное автономное  общеобразовательное учреждение \"Школа №74 с углубленным изучением отдельных предметов\"",34,"участник",null,"Шибалова Юлия Александровна"]
[144,"Московский","общ -11-7-2",7,7,"Муниципальное бюджетное общеобразовательное учреждение  \"Лицей № 87 имени Л.И. Новиковой\" ",34,"участник",null,"Кочетова Софья Ивановна"]
[145,"Московский","О-7-21",7,7,"Муниципальное бюджетное общеобразовательное учреждение \"Школа №115\"",33,"участник",null,"Юдина Ксения Вячеславовна"]
[146,"Московский","общ-11-7-13",7,7,"Муниципальное бюджетное общеобразовательное учреждение  \"Лицей № 87 имени Л.И. Новиковой\" ",33,"участник",null,"Мамаев Владимир Владимирович"]
[147,"Московский","ОБ-7-11",7,7,"Муниципальное автономное общеобразовательное учреждение \"Школа №172\"",33,"участник",null,"Дакудина Яна Дмитриевна "]
[148,"Московский","О-7-11",7,7,"Муниципальное бюджетное общеобразовательное учреждение \"Школа № 73\"",33,"участник",null,"Скворцова анна Ивановна"]
[149,"Московский","О-7-6",7,7,"Муниципальное бюджетное общеобразовательное учреждение \"Школа № 73\"",33,"участник",null,"Кузнецова Ольга Николаевна"]
[150,"Московский","О-7-11",7,7,"Муниципальное бюджетное общеобразовательное учреждение \"Школа № 73\"",33,"участник",null,"Скворцова Анна Ивановна"]
[151,"Московский","О-7-3",7,7,"Муниципальное бюджетное общеобразовательное учреждение \"Школа №115\"",32,"участник",null,"Юдина Ксения Вячеславовна"]
[152,"Московский","общ-11-7-10",7,7,"Муниципальное бюджетное общеобразовательное учреждение  \"Лицей № 87 имени Л.И. Новиковой\" ",32,"участник",null,"Мамаев Владимир Владимирович"]
[153,"Московский","О-7-20",7,7,"Муниципальное бюджетное общеобразовательное учреждение \"Школа №115\"",31,"участник",null,"Юдина Ксения Вячеславовна"]
[154,"Московский","О-7-7",7,7,"Муниципальное бюджетное общеобразовательное учреждение \"Школа №115\"",30,"участник",null,"Юдина Ксения Вячеславовна"]
[155,"Московский","ОБ7В-2",7,7,"Муниципальное  бюджетное  общеобразовательное учреждение \"Школа № 66\"",30,"участник",null,"Малов Сергей Вячеславович"]
[156,"Московский","О-7-11",7,7,"Муниципальное бюджетное общеобразовательное учреждение \"Школа №115\"",27,"участник",null,"Жукова Евгения Борисовна"]
[157,"Московский","ОБ7В-7",7,7,"Муниципальное  бюджетное  общеобразовательное учреждение \"Школа № 66\"",24,"участник",null,"Малов Сергей Вячеславович"]
[158,"Московский","О-7-7",7,7,"Муниципальное бюджетное общеобразовательное учреждение \"Школа № 73\"",20,"участник",null,"Скворцова Анна Ивановна"]
[159,"Московский","О-7-17",7,7,"Муниципальное бюджетное общеобразовательное учреждение \"Школа №115\"",19,"участник",null,"Жукова Евгения Борисовна"]
[160,"Московский","ОБ-07-23",7,7,"Муниципальное  бюджетное  общеобразовательное учреждение \"Школа № 21\"",19,"участник",null,"Мельникова Екатерина Андреевна"]
[161,"Московский","ОБ-7-10",7,7,"Муниципальное автономное общеобразовательное учреждение \"Школа №172\"",{"$f":"+F163+G166:G176","v":0},"участник",null,"Дакудина Яна Дмитриевна "]

{"sheet":"Обществознание 8","index":2,"n_rows":146,"n_cols":10,"rows_kept":146,"cut":false,"hidden":false,"merged":[[0,2,0,9]]}
[]
[]
[null,null,100]
[]
["№ п/п","Муниципалитет","Шифр (код) выданный ребенку","класс обучается","класс выступает","ОО, в которой обучается (полное название по УСТАВУ)","Количество набранных баллов","Статус","Победитель/призер МЭ 2021-2022 (статус)*","ФИО учителя (наставника)"]
[1,"Московский","Ш-8-5",8,8,"Муниципальное автономное общеобразовательное учреждение \"Школа № 139\"",98,"победитель",null,"Казакова Марина Анатольевна"]
[2,"Московский","Ш-8-2",8,8,"Муниципальное автономное общеобразовательное учреждение \"Школа № 139\"",87,"победитель",null,"Казакова Марина Анатольевна"]
[3,"Московский","Ш-8-3",8,8,"Муниципальное автономное общеобразовательное учреждение \"Школа № 139\"",87,"победитель",null,"Казакова Марина Анатольевна"]
[4,"Московский","Ш-8-4",8,8,"Муниципальное автономное общеобразовательное учреждение \"Школа № 139\"",87,"победитель",null,"Казакова Марина Анатольевна"]
[5,"Московский","0-8-3",8,8,"Муниципальное автономное  общеобразовательное учреждение \"Школа № 149\"",86,"призер",null,"Богатова Валентина Николаевна"]
[6,"Московский","О-8-04",8,8,"Муниципальное автономное общеобразовательное учреждение \"Гимназия № 67\"",84,"призер",null,"Романов Сергей Николаевич"]
[7,"Московский","ОБ-8-8",8,8,"Муниципальное автономное  общеобразовательное учреждение \"Школа №172\"",84,"призер",null,"Гаммель Александр Владимирович"]
[8,"Московский","О-8-05",8,8,"Муниципальное автономное общеобразовательное учреждение \"Гимназия № 67\"",84,"призер",null,"Романов Сергей Николаевич"]
[9,"Московский","О-8-33",8,8,"Муниципальное автономное  общеобразовательное учреждение \"Школа №178\"",81,"призер",null,"Анасенкова Светлана Валентиновна"]
[10,"Московский","О-8-06",8,8,"Муниципальное автономное общеобразовательное учреждение \"Гимназия № 67\"",81,"призер",null,"Романов Сергей Николаевич"]
[11,"Московский","о-8-40",8,8,"Муниципальное автономное  общеобразовательное учреждение \"Школа №74 с углубленным изучением отдельных предметов\"",80,"призер",null,"Морскова Елена Фирсовна"]
[12,"Московский","ОБ-8-6",8,8,"Муниципальное автономное  общеобразовательное учреждение \"Школа №172\"",78,"призер",null,"Гаммель Александр Владимирович"]
[13,"Московский","О-8-07",8,8,"Муниципальное автономное общеобразовательное учреждение \"Гимназия № 67\"",78,"призер",null,"Романов Сергей Николаевич"]
[14,"Московский","О-8-08",8,8,"Муниципальное автономное общеобразовательное учреждение \"Гимназия № 67\"",76,"призер",null,"Романов Сергей Николаевич"]
[15,"Московский","О-8-3",8,8,"Муниципальное бюджетное общеобразовательное учреждение \"Школа № 73\"",76,"призер",null,"Кузнецова Ольга Николаевна"]
[16,"Московский","О-8-10",8,8,"Муниципальное автономное общеобразовательное учреждение  \"Школа № 118 с углубленным изучением отдельных предметов\"",75,"призер",null,"Сосенкова Светлана Алексеевна"]
[17,"Московский","О-8-7",8,8,"муниципальное автономное  общеобразовательное учреждение \"Школа № 70 с углубленным изучением отдельных предметов\"",75,"призер",null,"Михайлова Ольга Анатольевна"]
[18,"Московский","О-8-09",8,8,"Муниципальное автономное общеобразовательное учреждение \"Гимназия № 67\"",75,"призер",null,"Романов Сергей Николаевич"]
[19,"Московский","0-8-1",8,8,"Муниципальное автономное  общеобразовательное учреждение \"Школа № 149\"",74,"призер",null,"Богатова Валентина Николаевна"]
[20,"Московский","0-8-2",8,8,"Муниципальное автономное  общеобразовательное учреждение \"Школа № 149\"",74,"призер",null,"Богатова Валентина Николаевна"]
[21,"Московский","0-8-5",8,8,"Муниципальное автономное  общеобразовательное учреждение \"Школа № 149\"",73,"призер",null,"Богатова Валентина Николаевна"]
[22,"Московский","ОБ-08-56",8,8,"Муниципальное  бюджетное  общеобразовательное учреждение \"Школа № 21\"",73,"призер",null,"Лошаков Андрей Михайлович"]
[23,"Московский","о-8-73",8,8,"Муниципальное автономное  общеобразовательное учреждение \"Школа №74 с углубленным изучением отдельных предметов\"",73,"призер",null,"Морскова Елена Фирсовна"]
[24,"Московский","о-8-3",8,8,"Муниципальное автономное  общеобразовательное учреждение \"Школа №74 с углубленным изучением отдельных предметов\"",73,"призер",null,"Морскова Елена Фирсовна"]
[25,"Московский","О-8001",8,8,"Муниципальное бюджетное общеобразовательное учреждение \"Школа № 69\"",72,"призер",null,"Миртова Ирина Владимировна"]
[26,"Московский","О-8-5",8,8,"Муниципальное бюджетное общеобразовательное учреждение \"Школа № 73\"",72,"призер",null,"Кузнецова Ольга Николаевна"]
[27,"Московский","О-8-11",8,8,"Муниципальное автономное общеобразовательное учреждение  \"Школа № 118 с углубленным изучением отдельных предметов\"",72,"призер",null,"Сосенкова Светлана Алексеевна"]
[28,"Московский","о-8-34",8,8,"Муниципальное автономное  общеобразовательное учреждение \"Школа №74 с углубленным изучением отдельных предметов\"",71,"призер",null,"Морскова Елена Фирсовна"]
[29,"Московский","ОБ-8-7",8,8,"Муниципальное автономное  общеобразовательное учреждение \"Школа №172\"",71,"призер",null,"Гаммель Александр Владимирович"]
[30,"Московский","о-8-29",8,8,"Муниципальное автономное  общеобразовательное учреждение \"Школа №74 с углубленным изучением отдельных предметов\"",70,"призер",null,"Морскова Елена Фирсовна"]
[31,"Московский","0-8-6",8,8,"Муниципальное автономное  общеобразовательное учреждение \"Школа №74 с углубленным изучением отдельных предметов\"",70,"призер",null,"Морскова Елена Фирсовна"]
[32,"Московский","О8-1",8,8,"Муниципальное  бюджетное  общеобразовательное учреждение \"Школа № 146\"",69,"призер",null,"Писаревская Наталья Николаевна"]
[33,"Московский","о-8-4",8,8,"Муниципальное автономное  общеобразовательное учреждение \"Школа №74 с углубленным изучением отдельных предметов\"",69,"призер",null,"Морскова Елена Фирсовна"]
[34,"Московский","О8-2",8,8,"Муниципальное  бюджетное  общеобразовательное учреждение \"Школа № 146\"",69,"призер",null,"Писаревская Наталья Николаевна"]
[35,"Московский","О-8-14",8,8,"Муниципальное автономное общеобразовательное учреждение  \"Школа № 118 с углубленным изучением отдельных предметов\"",69,"призер",null,"Сосенкова Светлана Алексеевна"]
[36,"Московский","ОБ-8-11",8,8,"Муниципальное автономное  общеобразовательное учреждение \"Школа №172\"",68,"призер",null,"Гаммель Александр Владимирович"]
[37,"Московский","о-8-39",8,8,"Муниципальное автономное  общеобразовательное учреждение \"Школа №74 с углубленным изучением отдельных предметов\"",68,"призер",null,"Морскова Елена Фирсовна"]
[38,"Московский","О-8-2",8,8,"Муниципальное автономное общеобразовательное учреждение  \"Школа № 118 с углубленным изучением отдельных предметов\"",68,"призер",null,"Сосенкова Светлана Алексеевна"]
[39,"Московский","ОБ-8-3",8,8,"Муниципальное автономное  общеобразовательное учреждение \"Школа №172\"",67,"призер",null,"Гаммель Александр Владимирович"]
[40,"Московский","О8-4",8,8,"Муниципальное  бюджетное  общеобразовательное учреждение \"Школа № 146\"",67,"призер",null,"Писаревская Наталья Николаевна"]
[41,"Московский","ОБ8А-1",8,8,"Муниципальное  бюджетное  общеобразовательное учреждение \"Школа № 66\"",66,"призер",null,"Малов Сергей Вячеславович"]
[42,"Московский","ОБ8А-2",8,8,"Муниципальное  бюджетное  общеобразовательное учреждение \"Школа № 66\"",66,"призер",null,"Малов Сергей Вячеславович"]
[43,"Московский","Ш-8-1",8,8,"Муниципальное автономное общеобразовательное учреждение \"Школа № 139\"",66,"призер",null,"Казакова Марина Анатольевна"]
[44,"Московский","общ-11-10-9",8,8,"Муниципальное бюджетное общеобразовательное учреждение  \"Лицей № 87 имени Л.И. Новиковой\" ",66,"призер",null,"Мамаев Владимир Владимирович"]
[45,"Московский","О-8-10",8,8,"Муниципальное автономное общеобразовательное учреждение \"Гимназия № 67\"",66,"призер",null,"Романов Сергей Николаевич"]
[46,"Московский","0-8-43",8,8,"Муниципальное автономное  общеобразовательное учреждение \"Школа №74 с углубленным изучением отдельных предметов\"",65,"участник",null,"Морскова Елена Фирсовна"]
[47,"Московский","общ-11-10-11",8,8,"Муниципальное бюджетное общеобразовательное учреждение  \"Лицей № 87 имени Л.И. Новиковой\" ",65,"участник",null,"Мамаев Владимир Владимирович"]
[48,"Московский","ОБ-8-5",8,8,"Муниципальное автономное  общеобразовательное учреждение \"Школа №172\"",65,"участник",null,"Гаммель Александр Владимирович"]
[49,"Московский","О-8-11",8,8,"Муниципальное автономное общеобразовательное учреждение \"Гимназия № 67\"",65,"участник",null,"Романов Сергей Николаевич"]
[50,"Московский","ОБ-8-10",8,8,"Муниципальное автономное  общеобразовательное учреждение \"Школа №172\"",64,"участник",null,"Гаммель Александр Владимирович"]
[51,"Московский","общ-11-10-4",8,8,"Муниципальное бюджетное общеобразовательное учреждение  \"Лицей № 87 имени Л.И. Новиковой\" ",63,"участник",null,"Мамаев Владимир Владимирович"]
[52,"Московский","ОБ-8-4",8,8,"Муниципальное автономное  общеобразовательное учреждение \"Школа №172\"",63,"участник",null,"Гаммель Александр Владимирович"]
[53,"Московский","о-8-31",8,8,"Муниципальное автономное  общеобразовательное учреждение \"Школа №74 с углубленным изучением отдельных предметов\"",62,"участник",null,"Морскова Елена Фирсовна"]
[54,"Московский","О-8-2",8,8,"Муниципальное бюджетное общеобразовательное учреждение \"Школа № 64\"",62,"участник ",null,"Громов Николай Евгеньевич"]
[55,"Московский","ОВ-1",8,8,"Муниципальное бюджетное общеобразовательное учреждение \"Школа №93\"",62,"участник",null,"Рослова Лариса Вячеславовна"]
[56,"Московский","О-8-8",8,8,"Муниципальное автономное общеобразовательное учреждение  \"Школа № 118 с углубленным изучением отдельных предметов\"",61,"участник",null,"Сосенкова Светлана Алексеевна"]
[57,"Московский","О-8008",8,8,"Муниципальное бюджетное общеобразовательное учреждение \"Школа № 69\"",61,"участник",null,"Миртова Ирина Владимировна"]
[58,"Московский","ОБ-08-61",8,8,"Муниципальное  бюджетное  общеобразовательное учреждение \"Школа № 21\"",60,"участник",null,"Лошаков Андрей Михайлович"]
[59,"Московский","О-8-15",8,8,"Муниципальное автономное общеобразовательное учреждение  \"Школа № 118 с углубленным изучением отдельных предметов\"",60,"участник",null,"Сосенкова Светлана Алексеевна"]
[60,"Московский","О-8007",8,8,"Муниципальное бюджетное общеобразовательное учреждение \"Школа № 69\"",60,"участник",null,"Миртова Ирина Владимировна"]
[61,"Московский","ОВ-2",8,8,"Муниципальное бюджетное общеобразовательное учреждение \"Школа №93\"",60,"участник",null,"Рослова Лариса Вячеславовна"]
[62,"Московский","О-8-5",8,8,"Муниципальное бюджетное общеобразовательное учреждение \"Школа №115\"",59,"участник",null,"Симахина Евгения Александровна"]
[63,"Московский","общ-11-10-1",8,8,"Муниципальное бюджетное общеобразовательное учреждение  \"Лицей № 87 имени Л.И. Новиковой\" ",59,"участник",null,"Мамаев Владимир Владимирович"]
[64,"Московский","ОБ-8-1",8,8,"Муниципальное автономное  общеобразовательное учреждение \"Школа №172\"",59,"участник",null,"Карпова Ольга Валерьевна"]
[65,"Московский","О-8-12",8,8,"Муниципальное автономное общеобразовательное учреждение \"Гимназия № 67\"",59,"участник",null,"Романов Сергей Николаевич"]
[66,"Московский","О-8-17",8,8,"Муниципальное автономное общеобразовательное учреждение  \"Школа № 118 с углубленным изучением отдельных предметов\"",59,"участник",null,"Сосенкова Светлана Алексеевна"]
[67,"Московский","О-8004",8,8,"Муниципальное бюджетное общеобразовательное учреждение \"Школа № 69\"",59,"участник",null,"Миртова Ирина Владимировна"]
[68,"Московский","О-8-14",8,8,"Муниципальное бюджетное общеобразовательное учреждение \"Школа №115\"",58,"участник",null,"Симахина Евгения Александровна"]
[69,"Московский","о-8-37",8,8,"Муниципальное автономное  общеобразовательное учреждение \"Школа №74 с углубленным изучением отдельных предметов\"",58,"участник",null,"Морскова Елена Фирсовна"]
[70,"Московский","общ-11-10-6",8,8,"Муниципальное бюджетное общеобразовательное учреждение  \"Лицей № 87 имени Л.И. Новиковой\" ",58,"участник",null,"Мамаев Владимир Владимирович"]
[71,"Московский","О-8-3",8,8,"Муниципальное автономное общеобразовательное учреждение  \"Школа № 118 с углубленным изучением отдельных предметов\"",58,"участник",null,"Сосенкова Светлана Алексеевна"]
[72,"Московский","о-8-35",8,8,"Муниципальное автономное  общеобразовательное учреждение \"Школа №74 с углубленным изучением отдельных предметов\"",57,"участник",null,"Морскова Елена Фирсовна"]
[73,"Московский","общ-11-10-2",8,8,"Муниципальное бюджетное общеобразовательное учреждение  \"Лицей № 87 имени Л.И. Новиковой\" ",57,"участник",null,"Мамаев Владимир Владимирович"]
[74,"Московский","О-8-13",8,8,"Муниципальное автономное общеобразовательное учреждение \"Гимназия № 67\"",57,"участник",null,"Романов Сергей Николаевич"]
[75,"Московский","о-8-41",8,8,"Муниципальное автономное  общеобразовательное учреждение \"Школа №74 с углубленным изучением отдельных предметов\"",56,"участник",null,"Морскова Елена Фирсовна"]
[76,"Московский","О-8-12",8,8,"муниципальное автономное  общеобразовательное учреждение \"Школа № 70 с углубленным изучением отдельных предметов\"",56,"участник",null,"Михайлова Ольга Анатольевна"]
[77,"Московский","О-8-3",8,8,"муниципальное автономное  общеобразовательное учреждение \"Школа № 70 с углубленным изучением отдельных предметов\"",56,"участник",null,"Михайлова Ольга Анатольевна"]
[78,"Московский","О-8-1",8,8,"Муниципальное бюджетное общеобразовательное учреждение \"Школа № 73\"",56,"участник",null,"Кузнецова Ольга Николаевна"]
[79,"Московский","общ-11-10-5",8,8,"Муниципальное бюджетное общеобразовательное учреждение  \"Лицей № 87 имени Л.И. Новиковой\" ",55,"участник",null,"Мамаев Владимир Владимирович"]
[80,"Московский","О-8-14",8,8,"Муниципальное автономное общеобразовательное учреждение \"Гимназия № 67\"",55,"участник",null,"Романов Сергей Николаевич"]
[81,"Московский","О-8-15",8,8,"Муниципальное автономное общеобразовательное учреждение \"Гимназия № 67\"",55,"участник",null,"Романов Сергей Николаевич"]
[82,"Московский","О-8-5",8,8,"Муниципальное автономное общеобразовательное учреждение  \"Школа № 118 с углубленным изучением отдельных предметов\"",55,"участник",null,"Сосенкова Светлана Алексеевна"]
[83,"Московский","О-8-9",8,8,"Муниципальное автономное общеобразовательное учреждение  \"Школа № 118 с углубленным изучением отдельных предметов\"",55,"участник",null,"Сосенкова Светлана Алексеевна"]
[84,"Московский","О-8-16",8,8,"Муниципальное автономное общеобразовательное учреждение  \"Школа № 118 с углубленным изучением отдельных предметов\"",55,"участник",null,"Сосенкова Светлана Алексеевна"]
[85,"Московский","О-8-13",8,8,"Муниципальное бюджетное общеобразовательное учреждение \"Школа №115\"",54,"участник",null,"Симахина Евгения Александровна"]
[86,"Московский","О-8-2",8,8,"муниципальное автономное  общеобразовательное учреждение \"Школа № 70 с углубленным изучением отдельных предметов\"",54,"участник",null,"Михайлова Ольга Анатольевна"]
[87,"Московский","общ-11-10-8",8,8,"Муниципальное бюджетное общеобразовательное учреждение  \"Лицей № 87 имени Л.И. Новиковой\" ",54,"участник",null,"Мамаев Владимир Владимирович"]
[88,"Московский","общ-11-10-10",8,8,"Муниципальное бюджетное общеобразовательное учреждение  \"Лицей № 87 имени Л.И. Новиковой\" ",54,"участник",null,"Мамаев Владимир Владимирович"]
[89,"Московский","О-8-03",8,8,"Муниципальное автономное общеобразовательное учреждение \"Гимназия № 67\"",54,"участник",null,"Романов Сергей Николаевич"]
[90,"Московский","О-8-1",8,8,"Муниципальное бюджетное общеобразовательное учреждение \"Школа №115\"",53,"участник",null,"Жукова Евгения Борисовна"]
[91,"Московский","о-8-33",8,8,"Муниципальное автономное  общеобразовательное учреждение \"Школа №74 с углубленным изучением отдельных предметов\"",53,"участник",null,"Морскова Елена Фирсовна"]
[92,"Московский","ОБ-08-72",8,8,"Муниципальное  бюджетное  общеобразовательное учреждение \"Школа № 21\"",51,"участник",null,"Лошаков Андрей Михайлович"]
[93,"Московский","ОБ8В-3",8,8,"Муниципальное  бюджетное  общеобразовательное учреждение \"Школа № 66\"",51,"участник",null,"Малов Сергей Вячеславович"]
[94,"Московский","О-8-3",8,8,"муниципальное автономное  общеобразовательное учреждение \"Школа № 70 с углубленным изучением отдельных предметов\"",51,"участник",null,"Михайлова Ольга Анатольевна"]
[95,"Московский","О-8-10",8,8,"муниципальное автономное  общеобразовательное учреждение \"Школа № 70 с углубленным изучением отдельных предметов\"",51,"участник",null,"Михайлова Ольга Анатольевна"]
[96,"Московский","ОБ-8-9",8,8,"Муниципальное автономное  общеобразовательное учреждение \"Школа №172\"",51,"участник",null,"Гаммель Александр Владимирович"]
[97,"Московский","0-8-4",8,8,"Муниципальное автономное  общеобразовательное учреждение \"Школа № 149\"",51,"участник",null,"Богатова Валентина Николаевна"]
[98,"Московский","О-8-5",8,8,"Муниципальное бюджетное общеобразовательное учреждение \"Школа № 73\"",51,"участник",null,"Кузнецова Ольга Николаевна"]
[99,"Московский","О-8-4",8,8,"Муниципальное бюджетное общеобразовательное учреждение \"Школа № 73\"",51,"участник",null,"Кузнецова Ольга Николаевна"]
[100,"Московский","О-8-6",8,8,"Муниципальное бюджетное общеобразовательное учреждение \"Школа №115\"",50,"участник",null,"Симахина Евгения Александровна"]
[101,"Московский","о-8-42",8,8,"Муниципальное автономное  общеобразовательное учреждение \"Школа №74 с углубленным изучением отдельных предметов\"",50,"участник",null,"Морскова Елена Фирсовна"]
[102,"Московский","ОБ-08-81",8,8,"Муниципальное  бюджетное  общеобразовательное учреждение \"Школа № 21\"",50,"участник",null,"Лошаков Андрей Михайлович"]
[103,"Московский","О-8-5",8,8,"муниципальное автономное  общеобразовательное учреждение \"Школа № 70 с углубленным изучением отдельных предметов\"",50,"участник",null,"Михайлова Ольга Анатольевна"]
[104,"Московский","О-8-2",8,8,"Муниципальное бюджетное общеобразовательное учреждение \"Школа №115\"",49,"участник",null,"Жукова Евгения Борисовна"]
[105,"Московский","О-8-6",8,8,"Муниципальное автономное общеобразовательное учреждение  \"Школа № 118 с углубленным изучением отдельных предметов\"",49,"участник",null,"Сосенкова Светлана Алексеевна"]
[106,"Московский","О-8-4",8,8,"Муниципальное автономное общеобразовательное учреждение  \"Школа № 118 с углубленным изучением отдельных предметов\"",49,"участник",null,"Сосенкова Светлана Алексеевна"]
[107,"Московский","О-8-7",8,8,"Муниципальное автономное общеобразовательное учреждение  \"Школа № 118 с углубленным изучением отдельных предметов\"",49,"участник",null,"Сосенкова Светлана Алексеевна"]
[108,"Московский","общ-11-10-3",8,8,"Муниципальное бюджетное общеобразовательное учреждение  \"Лицей № 87 имени Л.И. Новиковой\" ",48,"участник",null,"Мамаев Владимир Владимирович"]
[109,"Московский","о-8-12",8,8,"Муниципальное автономное  общеобразовательное учреждение \"Школа №74 с углубленным изучением отдельных предметов\"",47,"участник",null,"Морскова Елена Фирсовна"]
[110,"Московский","О-8-8",8,8,"муниципальное автономное  общеобразовательное учреждение \"Школа № 70 с углубленным изучением отдельных предметов\"",47,"участник",null,"Михайлова Ольга Анатольевна"]
[111,"Московский","ОБ-8-2",8,8,"Муниципальное автономное  общеобразовательное учреждение \"Школа №172\"",47,"участник",null,"Карпова Ольга Валерьевна"]
[112,"Московский","О-8-35",8,8,"Муниципальное автономное  общеобразовательное учреждение \"Школа №178\"",46,"участник",null,"Анасенкова Светлана Валентиновна"]
[113,"Московский","о-8-23",8,8,"Муниципальное автономное  общеобразовательное учреждение \"Школа №74 с углубленным изучением отдельных предметов\"",46,"участник",null,"Морскова Елена Фирсовна"]
[114,"Московский","ОБ8А-4",8,8,"Муниципальное  бюджетное  общеобразовательное учреждение \"Школа № 66\"",46,"участник",null,"Малов Сергей Вячеславович"]
[115,"Московский","О-8-6",8,8,"муниципальное автономное  общеобразовательное учреждение \"Школа № 70 с углубленным изучением отдельных предметов\"",46,"участник",null,"Михайлова Ольга Анатольевна"]
[116,"Московский","О-8-4",8,8,"муниципальное автономное  общеобразовательное учреждение \"Школа № 70 с углубленным изучением отдельных предметов\"",46,"участник",null,"Михайлова Ольга Анатольевна"]
[117,"Московский","О-8-9",8,8,"муниципальное автономное  общеобразовательное учреждение \"Школа № 70 с углубленным изучением отдельных предметов\"",46,"участник",null,"Михайлова Ольга Анатольевна"]
[118,"Московский","О-8-1",8,8,"муниципальное автономное  общеобразовательное учреждение \"Школа № 70 с углубленным изучением отдельных предметов\"",46,"участник",null,"Михайлова Ольга Анатольевна"]
[119,"Московский","общ-11-10-7",8,8,"Муниципальное бюджетное общеобразовательное учреждение  \"Лицей № 87 имени Л.И. Новиковой\" ",46,"участник",null,"Мамаев Владимир Владимирович"]
[120,"Московский","О-8-3",8,8,"Муниципальное бюджетное общеобразовательное учреждение \"Школа №115\"",45,"участник",null,"Жукова Евгения Борисовна"]
[121,"Московский","О-8-13",8,8,"муниципальное автономное  общеобразовательное учреждение \"Школа № 70 с углубленным изучением отдельных предметов\"",45,"участник",null,"Михайлова Ольга Анатольевна"]
[122,"Московский","О-8002",8,8,"Муниципальное бюджетное общеобразовательное учреждение \"Школа № 69\"",45,"участник",null,"Миртова Ирина Владимировна"]
[123,"Московский","О-8008",8,8,"Муниципальное бюджетное общеобразовательное учреждение \"Школа № 69\"",45,"участник",null,"Миртова Ирина Владимировна"]
[124,"Московский","О-8-14",8,8,"Муниципальное бюджетное общеобразовательное учреждение \"Школа №115\"",44,"участник",null,"Симахина Евгения Александровна"]
[125,"Московский","ОБ8А-5",8,8,"Муниципальное  бюджетное  общеобразовательное учреждение \"Школа № 66\"",44,"участник",null,"Малов Сергей Вячеславович"]
[126,"Московский","О-8006",8,8,"Муниципальное бюджетное общеобразовательное учреждение \"Школа № 69\"",44,"участник",null,"Миртова Ирина Владимировна"]
[127,"Московский","О-8-02",8,8,"Муниципальное автономное общеобразовательное учреждение \"Гимназия № 67\"",42,"участник",null,"Романов Сергей Николаевич"]
[128,"Московский","О-8-7",8,8,"Муниципальное бюджетное общеобразовательное учреждение \"Школа № 73\"",42,"участник",null,"Кузнецова Ольга Николаевна"]
[129,"Московский","О-8-34",8,8,"Муниципальное автономное  общеобразовательное учреждение \"Школа №178\"",40,"участник",null,"Анасенкова Светлана Валентиновна"]
[130,"Московский","О-8-8",8,8,"Муниципальное бюджетное общеобразовательное учреждение \"Школа №115\"",39,"участник",null,"Симахина Евгения Александровна"]
[131,"Московский","О-8-13",8,8,"Муниципальное автономное общеобразовательное учреждение  \"Школа № 118 с углубленным изучением отдельных предметов\"",39,"участник",null,"Сосенкова Светлана Алексеевна"]
[132,"Московский","О-8-1",8,8,"Муниципальное бюджетное общеобразовательное учреждение \"Школа № 64\"",38,"участник",null,"Громов Николай Евгеньевич"]
[133,"Московский","О-8-32",8,8,"Муниципальное автономное  общеобразовательное учреждение \"Школа №178\"",38,"участник",null,"Анасенкова Светлана Валентиновна"]
[134,"Московский","О-8-01 ",8,8,"Муниципальное автономное общеобразовательное учреждение \"Гимназия № 67\"",38,"участник",null,"Романов Сергей Николаевич"]
[135,"Московский","О-8-12",8,8,"Муниципальное автономное общеобразовательное учреждение  \"Школа № 118 с углубленным изучением отдельных предметов\"",38,"участник",null,"Сосенкова Светлана Алексеевна"]
[136,"Московский","О-8-37",8,8,"Муниципальное автономное  общеобразовательное учреждение \"Школа №178\"",35,"участник",null,"Анасенкова Светлана Валентиновна"]
[137,"Московский","О-8-1",8,8,"Муниципальное автономное общеобразовательное учреждение  \"Школа № 118 с углубленным изучением отдельных предметов\"",34,"участник",null,"Сосенкова Светлана Алексеевна"]
[138,"Московский","О-8-36",8,8,"Муниципальное автономное  общеобразовательное учреждение \"Школа №178\"",33,"участник",null,"Анасенкова Светлана Валентиновна"]
[139,"Московский","О8-3",8,8,"Муниципальное  бюджетное  общеобразовательное учреждение \"Школа № 146\"",28,"участник",null,"Писаревская Наталья Николаевна"]
[140,"Московский","О-8-2",8,8,"Муниципальное бюджетное общеобразовательное учреждение \"Школа № 73\"",27,"участник",null,"Кузнецова Ольга Николаевна"]
[141,"Московский","ОБ8А-6",8,8,"Муниципальное  бюджетное  общеобразовательное учреждение \"Школа № 66\"",23,"участник",null,"Малов Сергей Вячеславович"]

{"sheet":"Обществознание 9","index":3,"n_rows":156,"n_cols":11,"rows_kept":156,"cut":false,"hidden":false,"merged":[[0,2,0,9]]}
[]
[]
[null,null,100]
[]
[]
["№ п/п","Муниципалитет","Шифр (код) выданный ребенку","класс обучается","класс выступает","ОО, в которой обучается (полное название по УСТАВУ)","Количество набранных баллов","Статус","Победитель/призер МЭ 2021-2022 (статус)*","ФИО учителя (наставника)","ФИО учителя (наставника)**"]
[1,"Московский","ОДВ-4",9,9,"Муниципальное бюджетное общеобразовательное учреждение \"Школа №93\"",76,"победитель","призёр","Рослова Лариса Вячеславовна"]
[2,"Московский","ОБ-9-16",9,9,"Муниципальное автономное общеобразовательное учреждение \"Школа №172\"",72,"победитель",null,"Гаммель Александр Владимирович"]
[3,"Московский","ОБ-9-17",9,9,"Муниципальное автономное общеобразовательное учреждение \"Школа №172\"",70,"победитель",null,"Гаммель Александр Владимирович"]
[4,"Московский","О-9-3",9,9,"муниципальное автономное  общеобразовательное учреждение \"Школа № 70 с углубленным изучением отдельных предметов\"",68,"призер",null,"Михайлова Ольга Анатольевна"]
[5,"Московский","О-9-8",9,9,"муниципальное автономное  общеобразовательное учреждение \"Школа № 70 с углубленным изучением отдельных предметов\"",67,"призер",null,"Михайлова Ольга Анатольевна"]
[6,"Московский","О-9-3",9,9,"Муниципальное автономное общеобразовательное учреждение  \"Школа № 118 с углубленным изучением отдельных предметов\"",65,"призер",null,"Сосенкова Светлана Алексеевна"]
[7,"Московский","ОБ-9-13",9,9,"Муниципальное автономное общеобразовательное учреждение \"Школа №172\"",65,"призер",null,"Карпова Ольга Валерьевна"]
[8,"Московский","ОДВ-8",9,9,"Муниципальное бюджетное общеобразовательное учреждение \"Школа №93\"",64,"призер","призёр","Рослова Лариса Вячеславовна"]
[9,"Московский","ОБ-9-15",9,9,"Муниципальное автономное общеобразовательное учреждение \"Школа №172\"",63,"призер",null,"Карпова Ольга Валерьевна"]
[10,"Московский","О-9-7",9,9,"муниципальное автономное  общеобразовательное учреждение \"Школа № 70 с углубленным изучением отдельных предметов\"",63,"призер",null,"Михайлова Ольга Анатольевна"]
[11,"Московский","ОБ9А-2",9,9,"Муниципальное бюджетное общеобразовательное учреждение \"Школа № 66\"",61,"призер",null,"Малов Сергей Вячеславович"]
[12,"Московский","о-9-27",9,9,"Муниципальное автономное  общеобразовательное учреждение \"Школа №74 с углубленным изучением отдельных предметов\"",60,"призер",null,"Морскова Елена Фирсовна"]
[13,"Московский","О-9-7",9,9,"муниципальное автономное  общеобразовательное учреждение \"Школа № 70 с углубленным изучением отдельных предметов\"",59,"призер",null,"Михайлова Ольга Анатольевна"]
[14,"Московский","О-9-3",9,9,"Муниципальное автономное  общеобразовательное учреждение \"Школа № 149\"",59,"призер",null,"Прокофьева Александра Игоревна"]
[15,"Московский","ОБ-9-14",9,9,"Муниципальное автономное общеобразовательное учреждение \"Школа №172\"",59,"призер",null,"Карпова Ольга Валерьевна"]
[16,"Московский","О-9-29",9,9,"Муниципальное автономное  общеобразовательное учреждение \"Школа № 149\"",58,"призер",null,"Прокофьева Александра Игоревна"]
[17,"Московский","О-9-2",9,9,"Муниципальное бюджетное общеобразовательное учреждение \"Школа № 64\"",57,"призер ",null,"Громов Николай Евгеньевич"]
[18,"Московский","ОБЩ-11-9-8",9,9,"Муниципальное бюджетное общеобразовательное учреждение  \"Лицей № 87 имени Л.И. Новиковой\" ",57,"призер",null,"Дойников Максим Сергеевич"]
[19,"Московский","О-9-2",9,9,"Муниципальное автономное общеобразовательное учреждение  \"Школа № 118 с углубленным изучением отдельных предметов\"",56,"призер",null,"Сосенкова Светлана Алексеевна"]
[20,"Московский","ОБЩ-11-9-6",9,9,"Муниципальное бюджетное общеобразовательное учреждение  \"Лицей № 87 имени Л.И. Новиковой\" ",56,"призер",null,"Дойников Максим Сергеевич"]
[21,"Московский","О-9-1",9,9,"Муниципальное бюджетное общеобразовательное учреждение \"Школа № 64\"",56,"призер",null,"Громов Николай Евгеньевич"]
[22,"Московский","О-9-12",9,9,"Муниципальное автономное  общеобразовательное учреждение \"Школа № 149\"",55,"призер",null,"Прокофьева Александра Игоревна"]
[23,"Московский","О-9001",9,9,"Муниципальное бюджетное общеобразовательное учреждение \"Школа № 69\"",55,"призер",null,"Миртова Ирина Владимировна"]
[24,"Московский","О-9003",9,9,"Муниципальное бюджетное общеобразовательное учреждение \"Школа № 69\"",54,"призер",null,"Миртова Ирина Владимировна"]
[25,"Московский","ОБ-09-33",9,9,"Муниципальное бюджетное общеобразовательное учреждение \"Школа № 21\"",54,"призер",null,"Лошаков Андрей Михайлович"]
[26,"Московский","О-9-9",9,9,"Муниципальное автономное  общеобразовательное учреждение \"Школа № 149\"",53,"призер",null,"Прокофьева Александра Игоревна"]
[27,"Московский","ОБ-9-12",9,9,"Муниципальное автономное общеобразовательное учреждение \"Школа №172\"",52,"призер",null,"Карпова Ольга Валерьевна"]
[28,"Московский","о-9-18",9,9,"Муниципальное автономное  общеобразовательное учреждение \"Школа №74 с углубленным изучением отдельных предметов\"",52,"призер",null,"Морскова Елена Фирсовна"]
[29,"Московский","ОБЩ-11-9-4",9,9,"Муниципальное бюджетное общеобразовательное учреждение  \"Лицей № 87 имени Л.И. Новиковой\" ",51,"призер",null,"Дойников Максим Сергеевич"]
[30,"Московский","ОБ9В-1",9,9,"Муниципальное бюджетное общеобразовательное учреждение \"Школа № 66\"",51,"призер",null,"Малов Сергей Вячеславович"]
[31,"Московский","О-9-30",9,9,"Муниципальное автономное  общеобразовательное учреждение \"Школа № 178\"",51,"призер",null,"Дубынина Ирина Николаевна"]
[32,"Московский","ОБ9А-9",9,9,"Муниципальное бюджетное общеобразовательное учреждение \"Школа № 66\"",51,"призер",null,"Малов Сергей Вячеславович"]
[33,"Московский","ОБЩ-11-9-2",9,9,"Муниципальное бюджетное общеобразовательное учреждение  \"Лицей № 87 имени Л.И. Новиковой\" ",50,"призер",null,"Дойников Максим Сергеевич"]
[34,"Московский","О-9-27",9,9,"Муниципальное автономное  общеобразовательное учреждение \"Школа № 178\"",50,"призер",null,"Дубынина Ирина Николаевна"]
[35,"Московский","О9-3",9,9,"Муниципальное бюджетное общеобразовательное учреждение \"Школа № 146\"",49,"участник",null,"Писаревская Наталья Николаевна"]
[36,"Московский","О-9-14",9,9,"Муниципальное автономное  общеобразовательное учреждение \"Школа № 149\"",49,"участник",null,"Прокофьева Александра Игоревна"]
[37,"Московский","ОБ-09-45",9,9,"Муниципальное бюджетное общеобразовательное учреждение \"Школа № 21\"",48,"участник",null,"Лошаков Андрей Михайлович"]
[38,"Московский","О-9004",9,9,"Муниципальное бюджетное общеобразовательное учреждение \"Школа № 69\"",48,"участник",null,"Миртова Ирина Владимировна"]
[39,"Московский","ОБЩ-11-9-1",9,9,"Муниципальное бюджетное общеобразовательное учреждение  \"Лицей № 87 имени Л.И. Новиковой\" ",47,"участник",null,"Дойников Максим Сергеевич"]
[40,"Московский","ОБЩ-11-9-10",9,9,"Муниципальное бюджетное общеобразовательное учреждение  \"Лицей № 87 имени Л.И. Новиковой\" ",47,"участник",null,"Дойников Максим Сергеевич"]
[41,"Московский","О-9-13",9,9,"Муниципальное автономное  общеобразовательное учреждение \"Школа № 149\"",47,"участник",null,"Прокофьева Александра Игоревна"]
[42,"Московский","О9-2",9,9,"Муниципальное бюджетное общеобразовательное учреждение \"Школа № 146\"",46,"участник",null,"Писаревская Наталья Николаевна"]
[43,"Московский","О-9-7",9,9,"Муниципальное бюджетное общеобразовательное учреждение \"Школа № 73\"",46,"участник",null,"Кузнецова Ольга Николаевна"]
[44,"Московский","о-9-21",9,9,"Муниципальное автономное  общеобразовательное учреждение \"Школа №74 с углубленным изучением отдельных предметов\"",45,"участник",null,"Морскова Елена Фирсовна"]
[45,"Московский","О-9002",9,9,"Муниципальное бюджетное общеобразовательное учреждение \"Школа № 69\"",45,"участник",null,"Миртова Ирина Владимировна"]
[46,"Московский","ОБЩ-11-9-7",9,9,"Муниципальное бюджетное общеобразовательное учреждение  \"Лицей № 87 имени Л.И. Новиковой\" ",44,"участник",null,"Дойников Максим Сергеевич"]
[47,"Московский","О-9-9",9,9,"Муниципальное бюджетное общеобразовательное учреждение \"Школа № 73\"",43,"участник",null,"Кузнецова Ольга Николаевна"]
[48,"Московский","О-9-16",9,9,"Муниципальное бюджетное общеобразовательное учреждение \"Школа №115\"",42,"участник",null,"Жукова Евгения Борисовна"]
[49,"Московский","о-9-2",9,9,"Муниципальное автономное  общеобразовательное учреждение \"Школа №74 с углубленным изучением отдельных предметов\"",42,"участник",null,"Морскова Елена Фирсовна"]
[50,"Московский","О-9-10",9,9,"Муниципальное автономное  общеобразовательное учреждение \"Школа № 178\"",41,"участник",null,"Анасенкова Светлана Валентиновна"]
[51,"Московский","О9-1",9,9,"Муниципальное бюджетное общеобразовательное учреждение \"Школа № 146\"",41,"участник",null,"Писаревская Наталья Николаевна"]
[52,"Московский","ОБЩ-11-9-3",9,9,"Муниципальное бюджетное общеобразовательное учреждение  \"Лицей № 87 имени Л.И. Новиковой\" ",41,"участник",null,"Дойников Максим Сергеевич"]
[53,"Московский","О-9-8",9,9,"Муниципальное автономное  общеобразовательное учреждение \"Школа № 149\"",41,"участник",null,"Прокофьева Александра Игоревна"]
[54,"Московский","О-9-6",9,9,"Муниципальное бюджетное общеобразовательное учреждение \"Школа № 73\"",41,"участник",null,"Кузнецова Ольга Николаевна"]
[55,"Московский","О-9-3",9,9,"Муниципальное бюджетное общеобразовательное учреждение \"Школа №115\"",40,"участник",null,"Симахина Евгения Александровна"]
[56,"Московский","О-9-27",9,9,"Муниципальное автономное  общеобразовательное учреждение \"Школа № 149\"",40,"участник",null,"Прокофьева Александра Игоревна"]
[57,"Московский","О-9-1",9,9,"Муниципальное автономное общеобразовательное учреждение  \"Школа № 118 с углубленным изучением отдельных предметов\"",40,"участник",null,"Сосенкова Светлана Алексеевна"]
[58,"Московский","О-9-21",9,9,"Муниципальное бюджетное общеобразовательное учреждение \"Школа №115\"",39,"участник",null,"Жукова Евгения Борисовна"]
[59,"Московский","ОБЩ-11-9-12",9,9,"Муниципальное бюджетное общеобразовательное учреждение  \"Лицей № 87 имени Л.И. Новиковой\" ",39,"участник",null,"Дойников Максим Сергеевич"]
[60,"Московский","О-9-11",9,9,"Муниципальное автономное  общеобразовательное учреждение \"Школа № 178\"",38,"участник",null,"Анасенкова Светлана Валентиновна"]
[61,"Московский","О-9-4",9,9,"Муниципальное бюджетное общеобразовательное учреждение \"Школа №115\"",38,"участник",null,"Симахина Евгения Александровна"]
[62,"Московский","О-9-4",9,9,"муниципальное автономное  общеобразовательное учреждение \"Школа № 70 с углубленным изучением отдельных предметов\"",38,"участник",null,"Михайлова Ольга Анатольевна"]
[63,"Московский","ОБЩ-11-9-11",9,9,"Муниципальное бюджетное общеобразовательное учреждение  \"Лицей № 87 имени Л.И. Новиковой\" ",38,"участник",null,"Дойников Максим Сергеевич"]
[64,"Московский","ОДВ-7",9,9,"Муниципальное бюджетное общеобразовательное учреждение \"Школа №93\"",38,"участник",null,"Рослова Лариса Вячеславовна"]
[65,"Московский","о-9-36",9,9,"Муниципальное автономное  общеобразовательное учреждение \"Школа №74 с углубленным изучением отдельных предметов\"",37,"участник",null,"Морскова Елена Фирсовна"]
[66,"Московский","ОБЩ-11-9-13",9,9,"Муниципальное бюджетное общеобразовательное учреждение  \"Лицей № 87 имени Л.И. Новиковой\" ",37,"участник",null,"Дойников Максим Сергеевич"]
[67,"Московский","О-9-38",9,9,"Муниципальное автономное  общеобразовательное учреждение \"Школа № 178\"",36,"участник",null,"Чеснокова Ольга Андреевна"]
[68,"Московский","О-9-8",9,9,"Муниципальное бюджетное общеобразовательное учреждение \"Школа № 73\"",36,"участник",null,"Кузнецова Ольга Николаевна"]
[69,"Московский","ОДВ-6",9,9,"Муниципальное бюджетное общеобразовательное учреждение \"Школа №93\"",36,"участник",null,"Рослова Лариса Вячеславовна"]
[70,"Московский","О-9-21",9,9,"Муниципальное бюджетное общеобразовательное учреждение \"Школа №115\"",35,"участник",null,"Симахина Евгения Александровна"]
[71,"Московский","о-9-25",9,9,"Муниципальное автономное  общеобразовательное учреждение \"Школа №74 с углубленным изучением отдельных предметов\"",35,"участник",null,"Морскова Елена Фирсовна"]
[72,"Московский","ОБЩ-11-9-22",9,9,"Муниципальное бюджетное общеобразовательное учреждение  \"Лицей № 87 имени Л.И. Новиковой\" ",35,"участник",null,"Дойников Максим Сергеевич"]
[73,"Московский","Ш-9-4",9,"9А","Муниципальное автономное общеобразовательное учреждение \"Школа № 139\"",35,"участник",null,"Казакова Марина Анатольевна"]
[74,"Московский","О-9-39",9,9,"Муниципальное автономное  общеобразовательное учреждение \"Школа № 178\"",34,"участник",null,"Чеснокова Ольга Андреевна"]
[75,"Московский","О-9-5",9,9,"Муниципальное бюджетное общеобразовательное учреждение \"Школа №115\"",34,"участник",null,"Симахина Евгения Александровна"]
[76,"Московский","О-9-9",9,9,"Муниципальное бюджетное общеобразовательное учреждение \"Школа №115\"",34,"участник",null,"Симахина Евгения Александровна"]
[77,"Московский","О-9-02",9,9,"Муниципальное автономное общеобразовательное учреждение \"Гимназия № 67\"",34,"участник",null,"Егоров Вадим Валерьевич"]
[78,"Московский","ОБЩ-11-9-17",9,9,"Муниципальное бюджетное общеобразовательное учреждение  \"Лицей № 87 имени Л.И. Новиковой\" ",33,"участник",null,"Дойников Максим Сергеевич"]
[79,"Московский","о-9-14",9,9,"Муниципальное автономное  общеобразовательное учреждение \"Школа №74 с углубленным изучением отдельных предметов\"",32,"участник",null,"Морскова Елена Фирсовна"]
[80,"Московский","О-9-24",9,9,"Муниципальное автономное  общеобразовательное учреждение \"Школа № 149\"",32,"участник",null,"Прокофьева Александра Игоревна"]
[81,"Московский","о-9-26",9,9,"Муниципальное автономное  общеобразовательное учреждение \"Школа №74 с углубленным изучением отдельных предметов\"",31,"участник",null,"Морскова Елена Фирсовна"]
[82,"Московский","ОБЩ-11-9-15",9,9,"Муниципальное бюджетное общеобразовательное учреждение  \"Лицей № 87 имени Л.И. Новиковой\" ",31,"участник",null,"Дойников Максим Сергеевич"]
[83,"Московский","О-9-19",9,9,"Муниципальное автономное  общеобразовательное учреждение \"Школа № 149\"",31,"участник",null,"Прокофьева Александра Игоревна"]
[84,"Московский","О-9-28",9,9,"Муниципальное автономное  общеобразовательное учреждение \"Школа № 149\"",31,"участник",null,"Прокофьева Александра Игоревна"]
[85,"Московский","О-9-1",9,9,"Муниципальное автономное  общеобразовательное учреждение \"Школа № 149\"",31,"участник",null,"Прокофьева Александра Игоревна"]
[86,"Московский","ОБЩ-11-9-18",9,9,"Муниципальное бюджетное общеобразовательное учреждение  \"Лицей № 87 имени Л.И. Новиковой\" ",30,"участник",null,"Дойников Максим Сергеевич"]
[87,"Московский","ОБ-9-11",9,9,"Муниципальное автономное общеобразовательное учреждение \"Школа №172\"",30,"участник",null,"Карпова Ольга Валерьевна"]
[88,"Московский","О-9-7",9,9,"Муниципальное автономное  общеобразовательное учреждение \"Школа № 149\"",30,"участник",null,"Прокофьева Александра Игоревна"]
[89,"Московский","О-9-05",9,9,"Муниципальное автономное общеобразовательное учреждение \"Гимназия № 67\"",30,"участник",null,"Егоров Вадим Валерьевич"]
[90,"Московский","О-9-1",9,9,"Муниципальное бюджетное общеобразовательное учреждение \"Школа № 73\"",30,"участник",null,"Кузнецова Ольга Николаевна"]
[91,"Московский","О-9-3",9,9,"Муниципальное бюджетное общеобразовательное учреждение \"Школа № 73\"",30,"участник",null,"Кузнецова Ольга Николаевна"]
[92,"Московский","ОБ9В-7",9,9,"Муниципальное бюджетное общеобразовательное учреждение \"Школа № 66\"",29,"участник",null,"Малов Сергей Вячеславович"]
[93,"Московский","О-9-6",9,9,"муниципальное автономное  общеобразовательное учреждение \"Школа № 70 с углубленным изучением отдельных предметов\"",29,"участник",null,"Михайлова Ольга Анатольевна"]
[94,"Московский","ОБЩ-11-9-16",9,9,"Муниципальное бюджетное общеобразовательное учреждение  \"Лицей № 87 имени Л.И. Новиковой\" ",29,"участник",null,"Дойников Максим Сергеевич"]
[95,"Московский","Ш-9-3",9,"9А","Муниципальное автономное общеобразовательное учреждение \"Школа № 139\"",29,"участник",null,"Казакова Марина Анатольевна"]
[96,"Московский","О-9-08",9,9,"Муниципальное автономное общеобразовательное учреждение \"Гимназия № 67\"",29,"участник",null,"Егоров Вадим Валерьевич"]
[97,"Московский","ОБ9Б-5",9,9,"Муниципальное бюджетное общеобразовательное учреждение \"Школа № 66\"",28,"участник",null,"Малов Сергей Вячеславович"]
[98,"Московский","ОБ9В-10",9,9,"Муниципальное бюджетное общеобразовательное учреждение \"Школа № 66\"",28,"участник",null,"Малов Сергей Вячеславович"]
[99,"Московский","О-9-5",9,9,"Муниципальное автономное  общеобразовательное учреждение \"Школа № 149\"",27,"участник",null,"Прокофьева Александра Игоревна"]
[100,"Московский","о-9-26",9,9,"Муниципальное автономное  общеобразовательное учреждение \"Школа №74 с углубленным изучением отдельных предметов\"",26,"участник",null,"Морскова Елена Фирсовна"]
[101,"Московский","о-9-20",9,9,"Муниципальное автономное  общеобразовательное учреждение \"Школа №74 с углубленным изучением отдельных предметов\"",26,"участник",null,"Морскова Елена Фирсовна"]
[102,"Московский","ОБ9В-3",9,9,"Муниципальное бюджетное общеобразовательное учреждение \"Школа № 66\"",26,"участник",null,"Малов Сергей Вячеславович"]
[103,"Московский","О-9-5",9,9,"муниципальное автономное  общеобразовательное учреждение \"Школа № 70 с углубленным изучением отдельных предметов\"",26,"участник",null,"Михайлова Ольга Анатольевна"]
[104,"Московский","ОБЩ-11-9-24",9,9,"Муниципальное бюджетное общеобразовательное учреждение  \"Лицей № 87 имени Л.И. Новиковой\" ",26,"участник",null,"Дойников Максим Сергеевич"]
[105,"Московский","О-9-22",9,9,"Муниципальное автономное  общеобразовательное учреждение \"Школа № 149\"",26,"участник",null,"Прокофьева Александра Игоревна"]
[106,"Московский","О-9-6",9,9,"Муниципальное автономное  общеобразовательное учреждение \"Школа № 149\"",26,"участник",null,"Прокофьева Александра Игоревна"]
[107,"Московский","О-9-11",9,9,"Муниципальное автономное  общеобразовательное учреждение \"Школа № 149\"",26,"участник",null,"Прокофьева Александра Игоревна"]
[108,"Московский","О-9-07",9,9,"Муниципальное автономное общеобразовательное учреждение \"Гимназия № 67\"",26,"участник",null,"Егоров Вадим Валерьевич"]
[109,"Московский","ОДВ-9",9,9,"Муниципальное бюджетное общеобразовательное учреждение \"Школа №93\"",26,"участник",null,"Рослова Лариса Вячеславовна"]
[110,"Московский","О-9-10",9,9,"Муниципальное бюджетное общеобразовательное учреждение \"Школа №115\"",25,"участник",null,"Симахина Евгения Александровна"]
[111,"Московский","ОБЩ-11-9-21",9,9,"Муниципальное бюджетное общеобразовательное учреждение  \"Лицей № 87 имени Л.И. Новиковой\" ",25,"участник",null,"Дойников Максим Сергеевич"]
[112,"Московский","О-9-06",9,9,"Муниципальное автономное общеобразовательное учреждение \"Гимназия № 67\"",25,"участник",null,"Егоров Вадим Валерьевич"]
[113,"Московский","ОБЩ-11-9-19",9,9,"Муниципальное бюджетное общеобразовательное учреждение  \"Лицей № 87 имени Л.И. Новиковой\" ",24,"участник",null,"Дойников Максим Сергеевич"]
[114,"Московский","О-9-16",9,9,"Муниципальное автономное  общеобразовательное учреждение \"Школа № 149\"",24,"участник",null,"Прокофьева Александра Игоревна"]
[115,"Московский","О-9-25",9,9,"Муниципальное автономное  общеобразовательное учреждение \"Школа № 149\"",24,"участник",null,"Прокофьева Александра Игоревна"]
[116,"Московский","Ш-9-2",9,"9А","Муниципальное автономное общеобразовательное учреждение \"Школа № 139\"",24,"участник",null,"Казакова Марина Анатольевна"]
[117,"Московский","ОДВ-1",9,9,"Муниципальное бюджетное общеобразовательное учреждение \"Школа №93\"",24,"участник",null,"Рослова Лариса Вячеславовна"]
[118,"Московский","ОДВ-3",9,9,"Муниципальное бюджетное общеобразовательное учреждение \"Школа №93\"",24,"участник",null,"Рослова Лариса Вячеславовна"]
[119,"Московский","ОБ9В-11",9,9,"Муниципальное бюджетное общеобразовательное учреждение \"Школа № 66\"",23,"участник",null,"Малов Сергей Вячеславович"]
[120,"Московский","О-9-23",9,9,"Муниципальное автономное  общеобразовательное учреждение \"Школа № 149\"",23,"участник",null,"Прокофьева Александра Игоревна"]
[121,"Московский","О-9-2",9,9,"Муниципальное бюджетное общеобразовательное учреждение \"Школа № 73\"",23,"участник",null,"Кузнецова Ольга Николаевна"]
[122,"Московский","О-9-04",9,9,"Муниципальное автономное общеобразовательное учреждение \"Гимназия № 67\"",22,"участник",null,"Егоров Вадим Валерьевич"]
[123,"Московский","ОДВ-2",9,9,"Муниципальное бюджетное общеобразовательное учреждение \"Школа №93\"",22,"участник",null,"Рослова Лариса Вячеславовна"]
[124,"Московский","ОБЩ-11-9-20",9,9,"Муниципальное бюджетное общеобразовательное учреждение  \"Лицей № 87 имени Л.И. Новиковой\" ",21,"участник",null,"Дойников Максим Сергеевич"]
[125,"Московский","О-9-20",9,9,"Муниципальное автономное  общеобразовательное учреждение \"Школа № 149\"",21,"участник",null,"Прокофьева Александра Игоревна"]
[126,"Московский","ОДВ-5",9,9,"Муниципальное бюджетное общеобразовательное учреждение \"Школа №93\"",21,"участник",null,"Рослова Лариса Вячеславовна"]
[127,"Московский","О-9-22",9,9,"Муниципальное бюджетное общеобразовательное учреждение \"Школа №115\"",20,"участник",null,"Жукова Евгения Борисовна"]
[128,"Московский","ОБ9В-12",9,9,"Муниципальное бюджетное общеобразовательное учреждение \"Школа № 66\"",20,"участник",null,"Малов Сергей Вячеславович"]
[129,"Московский","ОБЩ-11-9-23",9,9,"Муниципальное бюджетное общеобразовательное учреждение  \"Лицей № 87 имени Л.И. Новиковой\" ",20,"участник",null,"Дойников Максим Сергеевич"]
[130,"Московский","О-9-4",9,9,"Муниципальное автономное  общеобразовательное учреждение \"Школа № 149\"",20,"участник",null,"Прокофьева Александра Игоревна"]
[131,"Московский","О-9-15",9,9,"Муниципальное автономное  общеобразовательное учреждение \"Школа № 149\"",20,"участник",null,"Прокофьева Александра Игоревна"]
[132,"Московский","ОБЩ-11-9-14",9,9,"Муниципальное бюджетное общеобразовательное учреждение  \"Лицей № 87 имени Л.И. Новиковой\" ",19,"участник",null,"Дойников Максим Сергеевич"]
[133,"Московский","О-9-26",9,9,"Муниципальное автономное  общеобразовательное учреждение \"Школа № 149\"",19,"участник",null,"Прокофьева Александра Игоревна"]
[134,"Московский","О-9-03",9,9,"Муниципальное автономное общеобразовательное учреждение \"Гимназия № 67\"",19,"участник",null,"Егоров Вадим Валерьевич"]
[135,"Московский","О-9-4",9,9,"Муниципальное бюджетное общеобразовательное учреждение \"Школа № 73\"",19,"участник",null,"Кузнецова Ольга Николаевна"]
[136,"Московский","О-9-31",9,9,"Муниципальное автономное  общеобразовательное учреждение \"Школа № 178\"",18,"участник",null,"Дубынина Ирина Николаевна"]
[137,"Московский","ОБ9В-6",9,9,"Муниципальное бюджетное общеобразовательное учреждение \"Школа № 66\"",18,"участник",null,"Малов Сергей Вячеславович"]
[138,"Московский","О-9-8",9,9,"Муниципальное бюджетное общеобразовательное учреждение \"Школа №115\"",17,"участник",null,"Симахина Евгения Александровна"]
[139,"Московский","ОБ9А-4",9,9,"Муниципальное бюджетное общеобразовательное учреждение \"Школа № 66\"",17,"участник",null,"Малов Сергей Вячеславович"]
[140,"Московский","ОБ9В-13",9,9,"Муниципальное бюджетное общеобразовательное учреждение \"Школа № 66\"",17,"участник",null,"Малов Сергей Вячеславович"]
[141,"Московский","О-9-2",9,9,"Муниципальное автономное  общеобразовательное учреждение \"Школа № 149\"",17,"участник",null,"Прокофьева Александра Игоревна"]
[142,"Московский","О-9-18",9,9,"Муниципальное автономное  общеобразовательное учреждение \"Школа № 149\"",17,"участник",null,"Прокофьева Александра Игоревна"]
[143,"Московский","ОБ9В-8",9,9,"Муниципальное бюджетное общеобразовательное учреждение \"Школа № 66\"",16,"участник",null,"Малов Сергей Вячеславович"]
[144,"Московский","ОБЩ-11-9-5",9,9,"Муниципальное бюджетное общеобразовательное учреждение  \"Лицей № 87 имени Л.И. Новиковой\" ",16,"участник",null,"Дойников Максим Сергеевич"]
[145,"Московский","О-9-17",9,9,"Муниципальное автономное  общеобразовательное учреждение \"Школа № 149\"",16,"участник",null,"Прокофьева Александра Игоревна"]
[146,"Московский","О-9-21",9,9,"Муниципальное автономное  общеобразовательное учреждение \"Школа № 149\"",16,"участник",null,"Прокофьева Александра Игоревна"]
[147,"Московский","О-9-10",9,9,"Муниципальное автономное  общеобразовательное учреждение \"Школа № 149\"",16,"участник",null,"Прокофьева Александра Игоревна"]
[148,"Московский","О-9-5",9,9,"Муниципальное бюджетное общеобразовательное учреждение \"Школа № 73\"",13,"участник",null,"Кузнецова Ольга Николаевна"]
[149,"Московский","О-9-17",9,9,"Муниципальное бюджетное общеобразовательное учреждение \"Школа №115\"",9,"участник",null,"Жукова Евгения Борисовна"]
[150,"Московский","О-9-01",9,9,"Муниципальное автономное общеобразовательное учреждение \"Гимназия № 67\"",7,"участник",null,"Егоров Вадим Валерьевич"]

{"sheet":"Обществознание 10","index":4,"n_rows":155,"n_cols":11,"rows_kept":155,"cut":false,"hidden":false,"merged":[[0,2,0,9]]}
[]
[]
[null,null,100]
[]
[]
["№ п/п","Муниципалитет","Шифр (код) выданный ребенку","класс обучается","класс выступает","ОО, в которой обучается (полное название по УСТАВУ)","Количество набранных баллов","Статус","Победитель/призер МЭ 2021-2022 (статус)*","ФИО учителя (наставника)","ФИО учителя (наставника)**"]
[1,"Московский","ОБ-10-26",10,10,"Муниципальное бюджетное общеобразовательное учреждение \"Школа № 21\"",82,"победитель",null,"Лошаков Андрей Михайлович"]
[2,"Московский","о-10-17",10,10,"Муниципальное автономное  общеобразовательное учреждение \"Школа №74 с углубленным изучением отдельных предметов\"",77,"победитель",null,"Морскова Елена Фирсовна"]
[3,"Московский","О-100139",10,10,"Муниципальное бюджетное общеобразовательное учреждение \"Школа № 69\"",72,"победитель",null,"Муравьева Ольга Николаевна"]
[4,"Московский","О-10-7",10,10,"муниципальное автономное  общеобразовательное учреждение \"Школа № 70 с углубленным изучением отдельных предметов\"",69,"призер",null,"Михайлова Ольга Анатольевна"]
[5,"Московский","О-100736",10,10,"Муниципальное бюджетное общеобразовательное учреждение \"Школа № 69\"",69,"призер",null,"Муравьева Ольга Николаевна"]
[6,"Московский","О-10-7",10,10,"Муниципальное бюджетное общеобразовательное учреждение \"Школа № 115\"",66,"призер",null,"Жукова Евгения Борисовна"]
[7,"Московский","О-10-6",10,10,"муниципальное автономное  общеобразовательное учреждение \"Школа № 70 с углубленным изучением отдельных предметов\"",66,"призер",null,"Михайлова Ольга Анатольевна"]
[8,"Московский","О-10-2",10,10,"Муниципальное бюджетное общеобразовательное учреждение \"Школа № 115\"",65,"призер",null,"Жукова Евгения Борисовна"]
[9,"Московский","О-10-5",10,10,"Муниципальное бюджетное общеобразовательное учреждение \"Школа № 115\"",65,"призер",null,"Жукова Евгения Борисовна"]
[10,"Московский","ОБ-10-3",10,10,"Муниципальное автономное  общеобразовательное учреждение \"Школа №172\"",65,"призер",null,"Карпова Ольга Валерьевна"]
[11,"Московский","О-10-03",10,10,"Муниципальное автономное общеобразовательное учреждение \"Гимназия № 67\"",65,"призер",null,"Романов Сергей Николаевич "]
[12,"Московский","О-10-9",10,10,"Муниципальное бюджетное общеобразовательное учреждение \"Школа № 73\"",65,"призер",null,"Кузнецова Ольга Николаевна"]
[13,"Московский","О-10-10",10,10,"Муниципальное бюджетное общеобразовательное учреждение \"Школа № 73\"",65,"призер",null,"Кузнецова Ольга Николаевна"]
[14,"Московский","О-10-05",10,10,"Муниципальное автономное общеобразовательное учреждение \"Гимназия № 67\"",64,"призер",null,"Романов Сергей Николаевич "]
[15,"Московский","О-10-02",10,10,"Муниципальное автономное общеобразовательное учреждение \"Гимназия № 67\"",64,"призер",null,"Романов Сергей Николаевич "]
[16,"Московский","О-10-01",10,10,"Муниципальное автономное общеобразовательное учреждение \"Гимназия № 67\"",64,"призер",null,"Романов Сергей Николаевич "]
[17,"Московский","О-10-06",10,10,"Муниципальное автономное общеобразовательное учреждение \"Гимназия № 67\"",64,"призер",null,"Романов Сергей Николаевич "]
[18,"Московский","О-10-5",10,10,"Муниципальное бюджетное общеобразовательное учреждение \"Школа № 73\"",64,"призер",null,"Кузнецова Ольга Николаевна"]
[19,"Московский","о-10-15",10,10,"Муниципальное автономное  общеобразовательное учреждение \"Школа №74 с углубленным изучением отдельных предметов\"",63,"призер",null,"Морскова Елена Фирсовна"]
[20,"Московский","О-10-14",10,null,"Муниципальное автономное общеобразовательное учреждение  \"Школа № 118 с углубленным изучением отдельных предметов\"",63,"призер",null,"Хехнев Александр Владимирович"]
[21,"Московский","О-10-1",10,10,"Муниципальное юджетное общеобразовательное учреждение \"Школа № 64\"",61,"призер ",null,"Громов Николай Евгеньевич"]
[22,"Московский","о-10-28",10,10,"Муниципальное автономное  общеобразовательное учреждение \"Школа №74 с углубленным изучением отдельных предметов\"",61,"призер",null,"Морскова Елена Фирсовна"]
[23,"Московский","О-10-3",10,10,"Муниципальное бюджетное общеобразовательное учреждение \"Школа № 115\"",60,"призер",null,"Жукова Евгения Борисовна"]
[24,"Московский","ОБ-10-6",10,10,"Муниципальное автономное  общеобразовательное учреждение \"Школа №172\"",60,"призер",null,"Карпова Ольга Валерьевна"]
[25,"Московский","ОБ-10-7",10,10,"Муниципальное автономное  общеобразовательное учреждение \"Школа №172\"",60,"призер",null,"Карпова Ольга Валерьевна"]
[26,"Московский","О-10-8",10,10,"муниципальное автономное  общеобразовательное учреждение \"Школа № 70 с углубленным изучением отдельных предметов\"",59,"призер",null,"Наумов Евгений Дмитриевич"]
[27,"Московский","ОБ-10-11",10,10,"Муниципальное автономное  общеобразовательное учреждение \"Школа №172\"",59,"призер",null,"Карпова Ольга Валерьевна"]
[28,"Московский","О-10-9",10,10,"муниципальное автономное  общеобразовательное учреждение \"Школа № 70 с углубленным изучением отдельных предметов\"",58,"призер",null,"Наумов Евгений Дмитриевич"]
[29,"Московский","ОБ-10-4",10,10,"Муниципальное автономное  общеобразовательное учреждение \"Школа №172\"",58,"призер",null,"Карпова Ольга Валерьевна"]
[30,"Московский","О-10-8",10,10,"Муниципальное бюджетное общеобразовательное учреждение \"Школа № 73\"",58,"призер",null,"Кузнецова Ольга Николаевна"]
[31,"Московский","О-100336",10,10,"Муниципальное бюджетное общеобразовательное учреждение \"Школа № 69\"",58,"призер",null,"Муравьева Ольга Николаевна"]
[32,"Московский","О-10-8",10,10,"Муниципальное бюджетное общеобразовательное учреждение \"Школа № 115\"",57,"призер",null,"Жукова Евгения Борисовна"]
[33,"Московский","О-10-10",10,10,"Муниципальное бюджетное общеобразовательное учреждение \"Школа № 115\"",57,"призер",null,"Жукова Евгения Борисовна"]
[34,"Московский","О-10-03",10,10,"Муниципальное автономное общеобразовательное учреждение \"Гимназия № 67\"",56,"призер",null,"Романов Сергей Николаевич "]
[35,"Московский","О-10-10",10,10,"Муниципальное автономное общеобразовательное учреждение \"Гимназия № 67\"",56,"призер",null,"Романов Сергей Николаевич "]
[36,"Московский","О-10-19",10,10,"Муниципальное автономное общеобразовательное учреждение \"Гимназия № 67\"",56,"призер",null,"Романов Сергей Николаевич "]
[37,"Московский","10-5",10,10,"Муниципальное бюджетное общеобразовательное учреждение  \"Лицей № 87 имени Л.И. Новиковой\" ",55,"призер",null,"Кулева С. В."]
[38,"Московский","Ш-10-5",10,"10А","Муниципальное автономное общеобразовательное учреждение \"Школа № 139\"",54,"призер",null,"Изосова Ирина Васильевна"]
[39,"Московский","О-10-7",10,null,"Муниципальное автономное общеобразовательное учреждение  \"Школа № 118 с углубленным изучением отдельных предметов\"",54,"призер",null,"Хехнев Александр Владимирович"]
[40,"Московский","О-10-4",10,null,"Муниципальное автономное общеобразовательное учреждение  \"Школа № 118 с углубленным изучением отдельных предметов\"",54,"призер",null,"Хехнев Александр Владимирович"]
[41,"Московский","О-10-5",10,10,"Муниципальное автономное  общеобразовательное учреждение \"Школа № 178\"",53,"призер",null,"Дубынина Ирина Николаевна"]
[42,"Московский","О-10-5",10,10,"муниципальное автономное  общеобразовательное учреждение \"Школа № 70 с углубленным изучением отдельных предметов\"",53,"призер",null,"Михайлова Ольга Анатольевна"]
[43,"Московский","О-10-10",10,10,"муниципальное автономное  общеобразовательное учреждение \"Школа № 70 с углубленным изучением отдельных предметов\"",53,"призер",null,"Наумов Евгений Дмитриевич"]
[44,"Московский","О-10-7",10,10,"Муниципальное бюджетное общеобразовательное учреждение \"Школа № 73\"",53,"призер",null,"Кузнецова Ольга Николаевна"]
[45,"Московский","ОБ-10-8",10,10,"Муниципальное автономное  общеобразовательное учреждение \"Школа №172\"",52,"призер",null,"Карпова Ольга Валерьевна"]
[46,"Московский","О-10-2",10,null,"Муниципальное автономное общеобразовательное учреждение  \"Школа № 118 с углубленным изучением отдельных предметов\"",52,"призер",null,"Хехнев Александр Владимирович"]
[47,"Московский","О-100239",10,10,"Муниципальное бюджетное общеобразовательное учреждение \"Школа № 69\"",52,"призер",null,"Муравьева Ольга Николаевна"]
[48,"Московский","ОДС-1",10,10,"Муниципальное бюджетное общеобразовательное учреждение \"Школа №93\"",52,"призер",null,"Рослова Лариса Вячеславовна"]
[49,"Московский","О-10-3",10,10,"Муниципальное автономное  общеобразовательное учреждение \"Школа № 178\"",51,"участник",null,"Дубынина Ирина Николаевна"]
[50,"Московский","ОБ-10-27",10,10,"Муниципальное бюджетное общеобразовательное учреждение \"Школа № 21\"",50,"участник",null,"Лошаков Андрей Михайлович"]
[51,"Московский","О-10-3",10,10,"муниципальное автономное  общеобразовательное учреждение \"Школа № 70 с углубленным изучением отдельных предметов\"",50,"участник",null,"Михайлова Ольга Анатольевна"]
[52,"Московский","О-10-1",10,10,"Муниципальное бюджетное общеобразовательное учреждение \"Школа № 115\"",49,"участник",null,"Жукова Евгения Борисовна"]
[53,"Московский","ОБ-10-9",10,10,"Муниципальное автономное  общеобразовательное учреждение \"Школа №172\"",49,"участник",null,"Карпова Ольга Валерьевна"]
[54,"Московский","О-10-11",10,10,"Муниципальное автономное общеобразовательное учреждение \"Гимназия № 67\"",49,"участник",null,"Романов Сергей Николаевич "]
[55,"Московский","О-10-17",10,null,"Муниципальное автономное общеобразовательное учреждение  \"Школа № 118 с углубленным изучением отдельных предметов\"",49,"участник",null,"Хехнев Александр Владимирович"]
[56,"Московский","О-10-6",10,10,"Муниципальное автономное  общеобразовательное учреждение \"Школа № 178\"",48,"участник",null,"Дубынина Ирина Николаевна"]
[57,"Московский","О-10-18",10,10,"Муниципальное автономное общеобразовательное учреждение \"Гимназия № 67\"",48,"участник",null,"Романов Сергей Николаевич "]
[58,"Московский","О-10-12",10,10,"Муниципальное автономное общеобразовательное учреждение \"Гимназия № 67\"",47,"участник",null,"Романов Сергей Николаевич "]
[59,"Московский","О-10-3",10,10,"Муниципальное бюджетное общеобразовательное учреждение \"Школа № 73\"",47,"участник",null,"Кузнецова Ольга Николаевна"]
[60,"Московский","10-10",10,10,"Муниципальное бюджетное общеобразовательное учреждение  \"Лицей № 87 имени Л.И. Новиковой\" ",46,"участник",null,"Кулева С. В."]
[61,"Московский","О-10-16",10,null,"Муниципальное автономное общеобразовательное учреждение  \"Школа № 118 с углубленным изучением отдельных предметов\"",46,"участник",null,"Хехнев Александр Владимирович"]
[62,"Московский","О-10-11",10,null,"Муниципальное автономное общеобразовательное учреждение  \"Школа № 118 с углубленным изучением отдельных предметов\"",46,"участник",null,"Хехнев Александр Владимирович"]
[63,"Московский","О-10-3",10,null,"Муниципальное автономное общеобразовательное учреждение  \"Школа № 118 с углубленным изучением отдельных предметов\"",46,"участник",null,"Хехнев Александр Владимирович"]
[64,"Московский","О-100839",10,10,"Муниципальное бюджетное общеобразовательное учреждение \"Школа № 69\"",46,"участник",null,"Муравьева Ольга Николаевна"]
[65,"Московский","О-10-6",10,null,"Муниципальное автономное общеобразовательное учреждение  \"Школа № 118 с углубленным изучением отдельных предметов\"",45,"участник",null,"Хехнев Александр Владимирович"]
[66,"Московский","О-10-1",10,null,"Муниципальное автономное общеобразовательное учреждение  \"Школа № 118 с углубленным изучением отдельных предметов\"",45,"участник",null,"Хехнев Александр Владимирович"]
[67,"Московский","10-3",10,10,"Муниципальное бюджетное общеобразовательное учреждение  \"Лицей № 87 имени Л.И. Новиковой\" ",44,"участник",null,"Кулева С. В."]
[68,"Московский","ОБ-10-2",10,10,"Муниципальное автономное  общеобразовательное учреждение \"Школа №172\"",44,"участник",null,"Карпова Ольга Валерьевна"]
[69,"Московский","О-10-8",10,null,"Муниципальное автономное общеобразовательное учреждение  \"Школа № 118 с углубленным изучением отдельных предметов\"",44,"участник",null,"Хехнев Александр Владимирович"]
[70,"Московский","О-10-6",10,10,"Муниципальное бюджетное общеобразовательное учреждение \"Школа № 115\"",43,"участник",null,"Жукова Евгения Борисовна"]
[71,"Московский","10-11",10,10,"Муниципальное бюджетное общеобразовательное учреждение  \"Лицей № 87 имени Л.И. Новиковой\" ",43,"участник","призер","Кулева С. В."]
[72,"Московский","О-10-17",10,10,"Муниципальное автономное общеобразовательное учреждение \"Гимназия № 67\"",43,"участник",null,"Романов Сергей Николаевич "]
[73,"Московский","О-10-1",10,10,"муниципальное автономное  общеобразовательное учреждение \"Школа № 70 с углубленным изучением отдельных предметов\"",42,"участник",null,"Михайлова Ольга Анатольевна"]
[74,"Московский","10-12",10,10,"Муниципальное бюджетное общеобразовательное учреждение  \"Лицей № 87 имени Л.И. Новиковой\" ",42,"участник",null,"Кулева С. В."]
[75,"Московский","О-10-1",10,10,"Муниципальное автономное  общеобразовательное учреждение \"Школа № 149\"",42,"участник",null,"Прокофьева Александра Игоревна"]
[76,"Московский","О-10-7",10,10,"Муниципальное автономное  общеобразовательное учреждение \"Школа № 149\"",42,"участник",null,"Прокофьева Александра Игоревна"]
[77,"Московский","О-10-13",10,10,"Муниципальное автономное общеобразовательное учреждение \"Гимназия № 67\"",42,"участник",null,"Романов Сергей Николаевич "]
[78,"Московский","О-10-15",10,null,"Муниципальное автономное общеобразовательное учреждение  \"Школа № 118 с углубленным изучением отдельных предметов\"",42,"участник",null,"Хехнев Александр Владимирович"]
[79,"Московский","О-101036",10,10,"Муниципальное бюджетное общеобразовательное учреждение \"Школа № 69\"",42,"участник",null,"Муравьева Ольга Николаевна"]
[80,"Московский","Ш-10-2",10,"10А","Муниципальное автономное общеобразовательное учреждение \"Школа № 139\"",41,"участник",null,"Изосова Ирина Васильевна"]
[81,"Московский","О-10-16",10,10,"Муниципальное автономное общеобразовательное учреждение \"Гимназия № 67\"",41,"участник",null,"Романов Сергей Николаевич "]
[82,"Московский","О-10-9",10,10,"Муниципальное автономное  общеобразовательное учреждение \"Школа № 178\"",40,"участник",null,"Дубынина Ирина Николаевна"]
[83,"Московский","О-10-2",10,10,"Муниципальное автономное  общеобразовательное учреждение \"Школа № 178\"",40,"участник",null,"Дубынина Ирина Николаевна"]
[84,"Московский","О-10-11",10,10,"Муниципальное бюджетное общеобразовательное учреждение \"Школа № 115\"",40,"участник",null,"Жукова Евгения Борисовна"]
[85,"Московский","10-6",10,10,"Муниципальное бюджетное общеобразовательное учреждение  \"Лицей № 87 имени Л.И. Новиковой\" ",40,"участник",null,"Кулева С. В."]
[86,"Московский","ОБ-10-02",10,10,"Муниципальное бюджетное общеобразовательное учреждение \"Школа № 21\"",39,"участник",null,"Лошаков Андрей Михайлович"]
[87,"Московский","О-10-9",10,10,"Муниципальное бюджетное общеобразовательное учреждение \"Школа № 115\"",38,"участник",null,"Жукова Евгения Борисовна"]
[88,"Московский","О-10-14",10,10,"Муниципальное автономное общеобразовательное учреждение \"Гимназия № 67\"",38,"участник",null,"Романов Сергей Николаевич "]
[89,"Московский","О-10-4",10,10,"Муниципальное бюджетное общеобразовательное учреждение \"Школа № 73\"",38,"участник",null,"Кузнецова Ольга Николаевна"]
[90,"Московский","О-100939",10,null,"Муниципальное бюджетное общеобразовательное учреждение \"Школа № 69\"",38,"участник",null,"Муравьева Ольга Николаевна"]
[91,"Московский","о-10-19",10,10,"Муниципальное автономное  общеобразовательное учреждение \"Школа №74 с углубленным изучением отдельных предметов\"",37,"участник",null,"Морскова Елена Фирсовна"]
[92,"Московский","о-10-32",10,10,"Муниципальное автономное  общеобразовательное учреждение \"Школа №74 с углубленным изучением отдельных предметов\"",37,"участник",null,"Морскова Елена Фирсовна"]
[93,"Московский","10-13",10,10,"Муниципальное бюджетное общеобразовательное учреждение  \"Лицей № 87 имени Л.И. Новиковой\" ",37,"участник",null,"Кулева С. В."]
[94,"Московский","О-10-15",10,10,"Муниципальное автономное общеобразовательное учреждение \"Гимназия № 67\"",37,"участник",null,"Романов Сергей Николаевич "]
[95,"Московский","О-10-18",10,null,"Муниципальное автономное общеобразовательное учреждение  \"Школа № 118 с углубленным изучением отдельных предметов\"",37,"участник",null,"Хехнев Александр Владимирович"]
[96,"Московский","О-10-9",10,null,"Муниципальное автономное общеобразовательное учреждение  \"Школа № 118 с углубленным изучением отдельных предметов\"",37,"участник",null,"Хехнев Александр Владимирович"]
[97,"Московский","О-100636",10,10,"Муниципальное бюджетное общеобразовательное учреждение \"Школа № 69\"",37,"участник",null,"Муравьева Ольга Николаевна"]
[98,"Московский","О-10-7",10,10,"Муниципальное автономное  общеобразовательное учреждение \"Школа № 178\"",36,"участник",null,"Дубынина Ирина Николаевна"]
[99,"Московский","о-10-5",10,10,"Муниципальное автономное  общеобразовательное учреждение \"Школа №74 с углубленным изучением отдельных предметов\"",36,"участник",null,"Морскова Елена Фирсовна"]
[100,"Московский","ОБ10А-4",10,10,"Муниципальное бюджетное общеобразовательное учреждение \"Школа № 66\"",36,"участник",null,"Прошунина Галина Петровна"]
[101,"Московский","О-10-09",10,10,"Муниципальное автономное общеобразовательное учреждение \"Гимназия № 67\"",36,"участник",null,"Романов Сергей Николаевич "]
[102,"Московский","о-10-1",10,10,"Муниципальное автономное  общеобразовательное учреждение \"Школа №74 с углубленным изучением отдельных предметов\"",35,"участник",null,"Морскова Елена Фирсовна"]
[103,"Московский","10-9",10,10,"Муниципальное бюджетное общеобразовательное учреждение  \"Лицей № 87 имени Л.И. Новиковой\" ",35,"участник",null,"Кулева С. В."]
[104,"Московский","ОБ-10-1",10,10,"Муниципальное автономное  общеобразовательное учреждение \"Школа №172\"",35,"участник",null,"Карпова Ольга Валерьевна"]
[105,"Московский","О-10-6",10,10,"Муниципальное бюджетное общеобразовательное учреждение \"Школа № 73\"",35,"участник",null,"Кузнецова Ольга Николаевна"]
[106,"Московский","О-10-2",10,10,"муниципальное автономное  общеобразовательное учреждение \"Школа № 70 с углубленным изучением отдельных предметов\"",34,"участник",null,"Михайлова Ольга Анатольевна"]
[107,"Московский","О-10-8",10,10,"Муниципальное автономное  общеобразовательное учреждение \"Школа № 149\"",34,"участник",null,"Прокофьева Александра Игоревна"]
[108,"Московский","Ш-10-1",10,"10А","Муниципальное автономное общеобразовательное учреждение \"Школа № 139\"",34,"участник",null,"Изосова  Ирина Васильвна"]
[109,"Московский","ОБ10А-2",10,10,"Муниципальное бюджетное общеобразовательное учреждение \"Школа № 66\"",33,"участник",null,"Прошунина Галина Петровна"]
[110,"Московский","ОБ-10-10",10,10,"Муниципальное автономное  общеобразовательное учреждение \"Школа №172\"",33,"участник",null,"Карпова Ольга Валерьевна"]
[111,"Московский","О-10-4",10,10,"Муниципальное автономное  общеобразовательное учреждение \"Школа № 149\"",33,"участник",null,"Прокофьева Александра Игоревна"]
[112,"Московский","Ш-10-4",10,"10А","Муниципальное автономное общеобразовательное учреждение \"Школа № 139\"",30,"участник",null,"Изосова Ирина Васильевна"]
[113,"Московский","О-10-10",10,null,"Муниципальное автономное общеобразовательное учреждение  \"Школа № 118 с углубленным изучением отдельных предметов\"",30,"участник",null,"Хехнев Александр Владимирович"]
[114,"Московский","О-10-11",10,10,"Муниципальное бюджетное общеобразовательное учреждение \"Школа № 73\"",30,"участник",null,"Кузнецова Ольга Николаевна"]
[115,"Московский","О-10-8",10,10,"Муниципальное автономное  общеобразовательное учреждение \"Школа № 178\"",29,"участник",null,"Дубынина Ирина Николаевна"]
[116,"Московский","Ш-10-3",10,"10А","Муниципальное автономное общеобразовательное учреждение \"Школа № 139\"",29,"участник",null,"Изосова Ирина Васильевна"]
[117,"Московский","10-4",10,10,"Муниципальное бюджетное общеобразовательное учреждение  \"Лицей № 87 имени Л.И. Новиковой\" ",28,"участник",null,"Кулева С. В."]
[118,"Московский","О-10-08",10,10,"Муниципальное автономное общеобразовательное учреждение \"Гимназия № 67\"",28,"участник",null,"Романов Сергей Николаевич "]
[119,"Московский","О-10-07",10,10,"Муниципальное автономное общеобразовательное учреждение \"Гимназия № 67\"",28,"участник",null,"Романов Сергей Николаевич "]
[120,"Московский","о-10-22",10,10,"Муниципальное автономное  общеобразовательное учреждение \"Школа №74 с углубленным изучением отдельных предметов\"",27,"участник",null,"Морскова Елена Фирсовна"]
[121,"Московский","10-7",10,10,"Муниципальное бюджетное общеобразовательное учреждение  \"Лицей № 87 имени Л.И. Новиковой\" ",27,"участник",null,"Кулева С. В."]
[122,"Московский","О-10-12",10,null,"Муниципальное автономное общеобразовательное учреждение  \"Школа № 118 с углубленным изучением отдельных предметов\"",27,"участник",null,"Хехнев Александр Владимирович"]
[123,"Московский","О-10-1",10,10,"Муниципальное бюджетное общеобразовательное учреждение \"Школа № 73\"",26,"участник",null,"Кузнецова Ольга Николаевна"]
[124,"Московский","О-10-4",10,10,"Муниципальное автономное  общеобразовательное учреждение \"Школа № 178\"",24,"участник",null,"Дубынина Ирина Николаевна"]
[125,"Московский","О-10-4",10,10,"муниципальное автономное  общеобразовательное учреждение \"Школа № 70 с углубленным изучением отдельных предметов\"",23,"участник",null,"Михайлова Ольга Анатольевна"]
[126,"Московский","О-10-3",10,10,"Муниципальное автономное  общеобразовательное учреждение \"Школа № 149\"",23,"участник",null,"Прокофьева Александра Игоревна"]
[127,"Московский","О-101336",10,10,"Муниципальное бюджетное общеобразовательное учреждение \"Школа № 69\"",23,"участник",null,"Муравьева Ольга Николаевна"]
[128,"Московский","10-15",10,10,"Муниципальное бюджетное общеобразовательное учреждение  \"Лицей № 87 имени Л.И. Новиковой\" ",22,"участник",null,"Кулева С. В."]
[129,"Московский","О-100536",10,10,"Муниципальное бюджетное общеобразовательное учреждение \"Школа № 69\"",22,"участник",null,"Муравьева Ольга Николаевна"]
[130,"Московский","10-8",10,10,"Муниципальное бюджетное общеобразовательное учреждение  \"Лицей № 87 имени Л.И. Новиковой\" ",21,"участник",null,"Кулева С. В."]
[131,"Московский","10-1",10,10,"Муниципальное бюджетное общеобразовательное учреждение  \"Лицей № 87 имени Л.И. Новиковой\" ",20,"участник",null,"Кулева С. В."]
[132,"Московский","О-10-5",10,10,"Муниципальное автономное  общеобразовательное учреждение \"Школа № 149\"",20,"участник",null,"Прокофьева Александра Игоревна"]
[133,"Московский","О-101136",10,10,"Муниципальное бюджетное общеобразовательное учреждение \"Школа № 69\"",19,"участник",null,"Муравьева Ольга Николаевна"]
[134,"Московский","О-100236",10,10,"Муниципальное бюджетное общеобразовательное учреждение \"Школа № 69\"",19,"участник",null,"Муравьева Ольга Николаевна"]
[135,"Московский","10-14",10,10,"Муниципальное бюджетное общеобразовательное учреждение  \"Лицей № 87 имени Л.И. Новиковой\" ",18,"участник",null,"Кулева С. В."]
[136,"Московский","10-2",10,10,"Муниципальное бюджетное общеобразовательное учреждение  \"Лицей № 87 имени Л.И. Новиковой\" ",18,"участник",null,"Кулева С. В."]
[137,"Московский","О-10-6",10,10,"Муниципальное автономное  общеобразовательное учреждение \"Школа № 149\"",18,"участник",null,"Прокофьева Александра Игоревна"]
[138,"Московский","ОБ10А-1",10,10,"Муниципальное бюджетное общеобразовательное учреждение \"Школа № 66\"",17,"участник",null,"Прошунина Галина Петровна"]
[139,"Московский","ОДС-2",10,10,"Муниципальное бюджетное общеобразовательное учреждение \"Школа №93\"",16,"участник",null,"Рослова Лариса Вячеславовна"]
[140,"Московский","ОБ10А-3",10,10,"Муниципальное бюджетное общеобразовательное учреждение \"Школа № 66\"",15,"участник",null,"Прошунина Галина Петровна"]
[141,"Московский","О-10-5",10,null,"Муниципальное автономное общеобразовательное учреждение  \"Школа № 118 с углубленным изучением отдельных предметов\"",14,"участник",null,"Хехнев Александр Владимирович"]
[142,"Московский","О-10-2",10,10,"Муниципальное автономное  общеобразовательное учреждение \"Школа № 149\"",13,"участник",null,"Прокофьева Александра Игоревна"]
[143,"Московский","ОБ-10-5",10,10,"Муниципальное автономное  общеобразовательное учреждение \"Школа №172\"",12,"участник",null,"Карпова Ольга Валерьевна"]
[144,"Московский","О-10-2",10,10,"Муниципальное бюджетное общеобразовательное учреждение \"Школа № 73\"",12,"участник",null,"Кузнецова Ольга Николаевна"]
[145,"Московский","О-100436",10,10,"Муниципальное бюджетное общеобразовательное учреждение \"Школа № 69\"",12,"участник",null,"Муравьева Ольга Николаевна"]
[146,"Московский","О-10-13",10,null,"Муниципальное автономное общеобразовательное учреждение  \"Школа № 118 с углубленным изучением отдельных предметов\"",11,"участник",null,"Хехнев Александр Владимирович"]
[147,"Московский","О-10-2",10,10,"Муниципальное юджетное общеобразовательное учреждение \"Школа № 64\"",9,"участник",null,"Громов Николай Евгеньевич"]
[148,"Московский","о-10-24",10,10,"Муниципальное автономное  общеобразовательное учреждение \"Школа №74 с углубленным изучением отдельных предметов\"",0,"участник",null,"Морскова Елена Фирсовна"]
[149,"Московский",null,10,10,"Муниципальное автономное  общеобразовательное учреждение \"Школа №74 с углубленным изучением отдельных предметов\"",null,"участник",null,"Морскова Елена Фирсовна"]

{"sheet":"Обществознание 11","index":5,"n_rows":106,"n_cols":11,"rows_kept":106,"cut":false,"hidden":false,"merged":[[0,2,0,9]]}
[]
[]
[null,null,100]
[]
[]
["№ п/п","Муниципалитет","Шифр (код) выданный ребенку","класс обучается","класс выступает","ОО, в которой обучается (полное название по УСТАВУ)","Количество набранных баллов","Статус","Победитель/призер МЭ 2021-2022 (статус)*","ФИО учителя (наставника)","ФИО учителя (наставника)**"]
[1,"Московский","О-11-1",11,11,"Муниципальное бюджетное общеобразовательное учреждение \"Школа № 73\"",87,"победитель",null,"Кузнецова Ольга Николаевна"]
[2,"Московский","О-11-2",11,11,"Муниципальное бюджетное общеобразовательное учреждение \"Школа № 73\"",80,"победитель",null,"Кузнецова Ольга Николаевна"]
[3,"Московский","ОБ-11-1",11,11,"Муниципальное автономное общеобразовательное учреждение \"Школа № 172\"",80,"победитель",null,"Гаммель Александр Владимирович"]
[4,"Московский","ОО-6",11,11,"Муниципальное бюджетное общеобразовательное учреждение \"Школа №93\"",76,"призер",null,"Рослова Лариса Вячеславовна"]
[5,{"$f":"$B$11","v":"Московский"},"11-7-11-10",11,11,"Муниципальное бюджетное общеобразовательное учреждение  \"Лицей № 87 имени Л.И. Новиковой\" ",75,"призер","призер","Шапкина Н.М."]
[6,{"$f":"$B$11","v":"Московский"},"О-11-7",11,11,"муниципальное автономное  общеобразовательное учреждение \"Школа № 70 с углубленным изучением отдельных предметов\"",70,"призер",null,"Михайлова Ольга Анатольевна"]
[7,"Московский","ОБ-11-4",11,11,"Муниципальное автономное общеобразовательное учреждение \"Школа № 172\"",68,"призер",null,"Гаммель Александр Владимирович"]
[8,{"$f":"$B$11","v":"Московский"},"11-6-11-10",11,11,"Муниципальное бюджетное общеобразовательное учреждение  \"Лицей № 87 имени Л.И. Новиковой\" ",66,"призер",null,"Шапкина Н.М."]
[9,{"$f":"$B$11","v":"Московский"},"ОБ11А-3",11,11,"Муниципальное бюджетное общеобразовательное учреждение \"Школа №66\"",65,"призер",null,"Прошунина Галина Петровна"]
[10,"Московский","О-11-03",11,11,"Муниципальное автономное общеобразовательное учреждение \"Гимназия № 67\"",64,"призер",null,"Романов Сергей Николаевич"]
[11,{"$f":"$B$11","v":"Московский"},"О-11-2",11,11,"муниципальное автономное  общеобразовательное учреждение \"Школа № 70 с углубленным изучением отдельных предметов\"",63,"призер",null,"Михайлова Ольга Анатольевна"]
[12,"Московский","О-11-13",11,11,"Муниципальное автономное общеобразовательное учреждение \"Школа № 178\"",62,"призер",null,"Дубынина Ирина Николаевна"]
[13,"Московский","ОО-1",11,11,"Муниципальное бюджетное общеобразовательное учреждение \"Школа №93\"",62,"призер",null,"Рослова Лариса Вячеславовна"]
[14,"Московский","ОО-5",11,11,"Муниципальное бюджетное общеобразовательное учреждение \"Школа №93\"",62,"призер",null,"Рослова Лариса Вячеславовна"]
[15,{"$f":"$B$11","v":"Московский"},"11-2-11-10",11,11,"Муниципальное бюджетное общеобразовательное учреждение  \"Лицей № 87 имени Л.И. Новиковой\" ",61,"призер",null,"Шапкина Н.М."]
[16,{"$f":"$B$11","v":"Московский"},"11-9-11-10",11,11,"Муниципальное бюджетное общеобразовательное учреждение  \"Лицей № 87 имени Л.И. Новиковой\" ",60,"призер",null,"Кулева С.В."]
[17,{"$f":"$B$11","v":"Московский"},"О-11-13",11,11,"Муниципальное автономное  общеобразовательное учреждение \"Школа №74 с углубленным изучением отдельных предметов\"",60,"призер",null,"Морскова Елена Фирсовна"]
[18,{"$f":"$B$11","v":"Московский"},"О-11-30",11,11,"Муниципальное автономное  общеобразовательное учреждение \"Школа №74 с углубленным изучением отдельных предметов\"",59,"призер",null,"Морскова Елена Фирсовна"]
[19,{"$f":"$B$11","v":"Московский"},"О-11-6",11,11,"Муниципальное бюджетное общеобразовательное учреждение \"Школа №115\"",58,"призер",null,"Симахина Евгения Александровна"]
[20,"Московский","О-1101",11,11,"Муниципальное бюджетное общеобразовательное учреждение \"Школа № 69\"",58,"призер",null,"Козлова Екатерина Ивановна"]
[21,{"$f":"$B$11","v":"Московский"},"ОБ-11-5",11,11,"Муниципальное автономное общеобразовательное учреждение \"Школа № 172\"",56,"призер",null,"Гаммель Александр Владимирович"]
[22,"Московский","О-11-14",11,11,"Муниципальное бюджетное общеобразовательное учреждение \"Школа №115\"",56,"призер","призер","Симахина Евгения Александровна"]
[23,{"$f":"$B$11","v":"Московский"},"ОБ11А-2",11,11,"Муниципальное бюджетное общеобразовательное учреждение \"Школа №66\"",55,"призер",null,"Прошунина Галина Петровна"]
[24,"Московский","О-11-4",11,11,"Муниципальное бюджетное общеобразовательное учреждение \"Школа № 73\"",54,"призер",null,"Кузнецова Ольга Николаевна"]
[25,{"$f":"$B$11","v":"Московский"},"ОБ-11-2",11,11,"Муниципальное автономное общеобразовательное учреждение \"Школа № 172\"",53,"призер",null,"Гаммель Александр Владимирович"]
[26,{"$f":"$B$11","v":"Московский"},"11-3-11-10",11,11,"Муниципальное бюджетное общеобразовательное учреждение  \"Лицей № 87 имени Л.И. Новиковой\" ",51,"призер",null,"Шапкина Н.М."]
[27,"Московский","0-11-1",11,11,"Муниципальное автономное общеобразовательное учреждение  \"Школа № 118 с углубленным изучением отдельных предметов\"",51,"призер",null,"Хехнев Александр Владимирович"]
[28,"Московский","О-11-05",11,11,"Муниципальное автономное общеобразовательное учреждение \"Гимназия № 67\"",49,"участник",null,"Романов Сергей Николаевич"]
[29,"Московский","О-11-02",11,11,"Муниципальное автономное общеобразовательное учреждение \"Гимназия № 67\"",48,"участник",null,"Романов Сергей Николаевич"]
[30,"Московский","О-11-12",11,11,"Муниципальное бюджетное общеобразовательное учреждение \"Школа № 73\"",48,"участник",null,"Кузнецова Ольга Николаевна"]
[31,{"$f":"$B$11","v":"Московский"},"О-11-6",11,11,"муниципальное автономное  общеобразовательное учреждение \"Школа № 70 с углубленным изучением отдельных предметов\"",47,"участник",null,"Михайлова Ольга Анатольевна"]
[32,{"$f":"$B$11","v":"Московский"},"ОБ-11-3",11,11,"Муниципальное автономное общеобразовательное учреждение \"Школа № 172\"",47,"участник",null,"Гаммель Александр Владимирович"]
[33,"Московский","Ш-11-8",11,11,"Муниципальное автономное общеобразовательное учреждение \"Школа № 139\"",47,"участник",null,"Казакова Марина Анатольевна"]
[34,"Московский","О-11-3",11,11,"Муниципальное бюджетное общеобразовательное учреждение \"Школа № 73\"",43,"участник",null,"Кузнецова Ольга Николаевна"]
[35,"Московский","О-11-01",11,11,"Муниципальное автономное общеобразовательное учреждение \"Гимназия № 67\"",41,"участник",null,"Романов Сергей Николаевич"]
[36,"Московский","О-11-06",11,11,"Муниципальное автономное общеобразовательное учреждение \"Гимназия № 67\"",41,"участник",null,"Романов Сергей Николаевич"]
[37,"Московский","О-11-8",11,11,"Муниципальное бюджетное общеобразовательное учреждение \"Школа № 73\"",41,"участник",null,"Кузнецова Ольга Николаевна"]
[38,"Московский","О-11-13",11,11,"Муниципальное бюджетное общеобразовательное учреждение \"Школа № 73\"",41,"участник",null,"Кузнецова Ольга Николаевна"]
[39,{"$f":"$B$11","v":"Московский"},"О-11-11",11,11,"Муниципальное бюджетное общеобразовательное учреждение \"Школа №115\"",40,"участник",null,"Симахина Евгения Александровна"]
[40,"Московский","11-8-11-10",11,11,"Муниципальное бюджетное общеобразовательное учреждение  \"Лицей № 87 имени Л.И. Новиковой\" ",39,"участник",null,"Шапкина Н.М."]
[41,"Московский","11-5-11-10",11,11,"Муниципальное бюджетное общеобразовательное учреждение  \"Лицей № 87 имени Л.И. Новиковой\" ",39,"участник",null,"Шапкина Н.М."]
[42,"Московский","О-11-15",11,11,"Муниципальное бюджетное общеобразовательное учреждение \"Школа №115\"",38,"участник",null,"Симахина Евгения Александровна"]
[43,"Московский","11-4-11-10",11,11,"Муниципальное бюджетное общеобразовательное учреждение  \"Лицей № 87 имени Л.И. Новиковой\" ",37,"участник",null,"Шапкина Н.М."]
[44,"Московский","11-10-11-10",11,11,"Муниципальное бюджетное общеобразовательное учреждение  \"Лицей № 87 имени Л.И. Новиковой\" ",37,"участник",null,"Шапкина Н.М."]
[45,"Московский","О-11-9",11,11,"Муниципальное бюджетное общеобразовательное учреждение \"Школа № 73\"",37,"участник",null,"Кузнецова Ольга Николаевна"]
[46,{"$f":"$B$11","v":"Московский"},"11-1-11-10",11,11,"Муниципальное бюджетное общеобразовательное учреждение  \"Лицей № 87 имени Л.И. Новиковой\" ",36,"участник",null,"Кулева С.В."]
[47,"Московский","О-11-16",11,11,"Муниципальное автономное общеобразовательное учреждение \"Школа № 178\"",35,"участник",null,"Дубынина Ирина Николаевна"]
[48,{"$f":"$B$11","v":"Московский"},"О-11-10",11,11,"Муниципальное бюджетное общеобразовательное учреждение \"Школа №115\"",35,"участник",null,"Симахина Евгения Александровна"]
[49,"Московский","ОБ11А-1",11,11,"Муниципальное бюджетное общеобразовательное учреждение \"Школа №66\"",35,"участник",null,"Прошунина Галина Петровна"]
[50,"Московский","О-11-7",11,11,"Муниципальное бюджетное общеобразовательное учреждение \"Школа №115\"",34,"участник",null,"Симахина Евгения Александровна"]
[51,"Московский","ОБ11А-4",11,11,"Муниципальное бюджетное общеобразовательное учреждение \"Школа №66\"",34,"участник",null,"Прошунина Галина Петровна"]
[52,"Московский","О-11-18",11,11,"Муниципальное бюджетное общеобразовательное учреждение \"Школа №115\"",33,"участник",null,"Симахина Евгения Александровна"]
[53,"Московский","11-11-11-10",11,11,"Муниципальное бюджетное общеобразовательное учреждение  \"Лицей № 87 имени Л.И. Новиковой\" ",33,"участник",null,"Шапкина Н.М."]
[54,"Московский","Ш-11-5",11,11,"Муниципальное автономное общеобразовательное учреждение \"Школа № 139\"",33,"участник",null,"Казакова Марина Анатольевна"]
[55,"Московский","О-11-03",11,11,"Муниципальное автономное общеобразовательное учреждение \"Гимназия № 67\"",33,"участник",null,"Романов Сергей Николаевич"]
[56,"Московский","О-11-09",11,11,"Муниципальное автономное общеобразовательное учреждение \"Гимназия № 67\"",33,"участник",null,"Романов Сергей Николаевич"]
[57,"Московский","О-11-7",11,11,"Муниципальное бюджетное общеобразовательное учреждение \"Школа № 73\"",32,"участник",null,"Кузнецова Ольга Николаевна"]
[58,{"$f":"$B$11","v":"Московский"},"О-11-13",11,11,"Муниципальное бюджетное общеобразовательное учреждение \"Школа №115\"",31,"участник",null,"Симахина Евгения Александровна"]
[59,"Московский","Ш-11-1",11,11,"Муниципальное автономное общеобразовательное учреждение \"Школа № 139\"",31,"участник",null,"Казакова Марина Анатольевна"]
[60,"Московский","Ш-11-7",11,11,"Муниципальное автономное общеобразовательное учреждение \"Школа № 139\"",31,"участник",null,"Казакова Марина Анатольевна"]
[61,"Московский","О-11-2",11,11,"Муниципальное бюджетное общеобразовательное учреждение \"Школа № 64\"",31,"участник",null,"Громов Николай Евгеньевич"]
[62,"Московский","О-11-1",11,11,"Муниципальное бюджетное общеобразовательное учреждение \"Школа № 64\"",31,"участник",null,"Громов Николай Евгеньевич"]
[63,"Московский","О-11-07",11,11,"Муниципальное автономное общеобразовательное учреждение \"Гимназия № 67\"",31,"участник",null,"Романов Сергей Николаевич"]
[64,{"$f":"$B$11","v":"Московский"},"О-11-26",11,11,"Муниципальное автономное общеобразовательное учреждение \"Школа № 178\"",30,"участник",null,"Дубынина Ирина Николаевна"]
[65,{"$f":"$B$11","v":"Московский"},"ОО-4",11,11,"Муниципальное бюджетное общеобразовательное учреждение \"Школа №93\"",30,"участник",null,"Рослова Лариса Вячеславовна"]
[66,"Московский","О-11-3",11,11,"муниципальное автономное  общеобразовательное учреждение \"Школа № 70 с углубленным изучением отдельных предметов\"",29,"участник",null,"Михайлова Ольга Анатольевна"]
[67,"Московский","О-11-16",11,11,"Муниципальное бюджетное общеобразовательное учреждение \"Школа №115\"",28,"участник",null,"Симахина Евгения Александровна"]
[68,"Московский","0-11-2",11,11,"Муниципальное автономное общеобразовательное учреждение  \"Школа № 118 с углубленным изучением отдельных предметов\"",28,"участник",null,"Сосенкова Светлана Алексеевна"]
[69,"Московский","Ш-11-6",11,11,"Муниципальное автономное общеобразовательное учреждение \"Школа № 139\"",27,"участник",null,"Казакова Марина Анатольевна"]
[70,{"$f":"$B$11","v":"Московский"},"О-11-10",11,11,"Муниципальное бюджетное общеобразовательное учреждение \"Школа № 73\"",26,"участник",null,"Кузнецова Ольга Николаевна"]
[71,{"$f":"$B$11","v":"Московский"},"ОО-3",11,11,"Муниципальное бюджетное общеобразовательное учреждение \"Школа №93\"",26,"участник",null,"Рослова Лариса Вячеславовна"]
[72,{"$f":"$B$11","v":"Московский"},"О-11-14",11,11,"Муниципальное автономное  общеобразовательное учреждение \"Школа №74 с углубленным изучением отдельных предметов\"",25,"участник",null,"Морскова Елена Фирсовна"]
[73,{"$f":"$B$11","v":"Московский"},"О-11-5",11,11,"муниципальное автономное  общеобразовательное учреждение \"Школа № 70 с углубленным изучением отдельных предметов\"",25,"участник",null,"Михайлова Ольга Анатольевна"]
[74,{"$f":"$B$11","v":"Московский"},"О-11-5",11,11,"Муниципальное бюджетное общеобразовательное учреждение \"Школа №115\"",23,"участник",null,"Симахина Евгения Александровна"]
[75,"Московский","о-11-7",11,11,"Муниципальное автономное  общеобразовательное учреждение \"Школа №74 с углубленным изучением отдельных предметов\"",23,"участник",null,"Морскова Елена Фирсовна"]
[76,"Московский","О-11-4",11,11,"муниципальное автономное  общеобразовательное учреждение \"Школа № 70 с углубленным изучением отдельных предметов\"",23,"участник",null,"Михайлова Ольга Анатольевна"]
[77,"Московский","О-11-11",11,11,"Муниципальное бюджетное общеобразовательное учреждение \"Школа № 73\"",23,"участник",null,"Кузнецова Ольга Николаевна"]
[78,"Московский","ОО-2",11,11,"Муниципальное бюджетное общеобразовательное учреждение \"Школа №93\"",23,"участник",null,"Рослова Лариса Вячеславовна"]
[79,{"$f":"$B$11","v":"Московский"},"Ш-11-3",11,11,"Муниципальное автономное общеобразовательное учреждение \"Школа № 139\"",22,"участник",null,"Казакова Марина Анатольевна"]
[80,"Московский","О-11-6",11,11,"Муниципальное бюджетное общеобразовательное учреждение \"Школа № 73\"",22,"участник",null,"Кузнецова Ольга Николаевна"]
[81,"Московский","О-11-2",11,11,"Муниципальное бюджетное общеобразовательное учреждение \"Школа №115\"",21,"участник",null,"Симахина Евгения Александровна"]
[82,"Московский","О-11-08",11,11,"Муниципальное автономное общеобразовательное учреждение \"Гимназия № 67\"",21,"участник",null,"Романов Сергей Николаевич"]
[83,"Московский","Ш-11-4",11,11,"Муниципальное автономное общеобразовательное учреждение \"Школа № 139\"",19,"участник",null,"Казакова Марина Анатольевна"]
[84,{"$f":"$B$11","v":"Московский"},"О-11-17",11,11,"Муниципальное автономное общеобразовательное учреждение \"Школа № 178\"",18,"участник",null,"Дубынина Ирина Николаевна"]
[85,"Московский","О-11-25",11,11,"Муниципальное автономное общеобразовательное учреждение \"Школа № 178\"",16,"участник",null,"Дубынина Ирина Николаевна"]
[86,{"$f":"$B$11","v":"Московский"},"О-11-14",11,11,"Муниципальное автономное общеобразовательное учреждение \"Школа № 178\"",16,"участник",null,"Дубынина Ирина Николаевна"]
[87,"Московский","О-11-1",11,11,"Муниципальное автономное  общеобразовательное учреждение \"Школа № 149\"",16,"участник",null,"Прокофьева Александра Игоревна"]
[88,"Московский","О-11-15",11,11,"Муниципальное автономное общеобразовательное учреждение \"Школа № 178\"",15,"участник",null,"Дубынина Ирина Николаевна"]
[89,{"$f":"$B$11","v":"Московский"},"О-11-3",11,11,"Муниципальное автономное  общеобразовательное учреждение \"Школа № 149\"",15,"участник",null,"Прокофьева Александра Игоревна"]
[90,{"$f":"$B$11","v":"Московский"},"О-11-2",11,11,"Муниципальное автономное  общеобразовательное учреждение \"Школа № 149\"",14,"участник",null,"Прокофьева Александра Игоревна"]
[91,{"$f":"$B$11","v":"Московский"},"О-11-12",11,11,"Муниципальное автономное общеобразовательное учреждение \"Школа № 178\"",12,"участник",null,"Дубынина Ирина Николаевна"]
[92,{"$f":"$B$11","v":"Московский"},"О-11-3",11,11,"Муниципальное бюджетное общеобразовательное учреждение \"Школа №115\"",11,"участник",null,"Симахина Евгения Александровна"]
[93,{"$f":"$B$11","v":"Московский"},"О-11-17",11,11,"Муниципальное автономное общеобразовательное учреждение \"Школа № 178\"",10,"участник",null,"Дубынина Ирина Николаевна"]
[94,"Московский","О-11-8",11,11,"Муниципальное бюджетное общеобразовательное учреждение \"Школа №115\"",10,"участник",null,"Симахина Евгения Александровна"]
[95,"Московский","ОБ-11-10",11,11,"Муниципальное бюджетное общеобразовательное учреждение \"Школа №21\"",10,"участник",null,"Лошаков Андрей Михайлович"]
[96,"Московский","О-11-5",11,11,"Муниципальное автономное  общеобразовательное учреждение \"Школа № 149\"",10,"участник",null,"Прокофьева Александра Игоревна"]
[97,"Московский","Ш-11-2",11,11,"Муниципальное автономное общеобразовательное учреждение \"Школа № 139\"",10,"участник",null,"Казакова Марина Анатольевна"]
[98,{"$f":"$B$11","v":"Московский"},"О-11-5",11,11,"Муниципальное бюджетное общеобразовательное учреждение \"Школа № 73\"",9,"участник",null,"Кузнецова Ольга Николаевна"]
[99,{"$f":"$B$11","v":"Московский"},"О-11-4",11,11,"Муниципальное автономное  общеобразовательное учреждение \"Школа № 149\"",8,"участник",null,"Прокофьева Александра Игоревна"]
[100,"Московский",null,11,11,"Муниципальное автономное  общеобразовательное учреждение \"Школа №74 с углубленным изучением отдельных предметов\"",null,"участник","призёр","Морскова Елена Фирсовна"]